Cogmind - Beta 15 @@@ ROGUE MODE // 2025.05.10 @ 16:14:37 Player: CrossedViper Result: Destroyed by Immortal with Experimental Jetlance Performance ------------- Evolutions (8) 4000 Regions Visited (30) 6000 Robots Destroyed (330) 1650 Value Destroyed (13806) 13806 Prototype IDs (177) 3540 Alien Tech Used (2) 400 Bonus (7980) 7980 TOTAL SCORE: 37376 Bonus ------- High Alert Combat Kills 1511 Follower Combat Kills 1841 Network Hubs Disabled 200 Registered with UFD 300 Met Optimus in HQ 500 Met Zhirov 300 Met Warlord at Base 500 MAIN.C Attacked Warlord 500 Met R17 at Cetus 500 Met R17 at Research 2000 Met Optimus at Protoforge 1000 Friendly Fire -1172 Cogmind --------- Core Integrity 0/1450 Matter 300/300 Energy 100/100 System Corruption 9% Temperature Cool (0) Movement Core (50) Location -2/Protoforge Parts ------- > --- POWER (2) -------- (None) > --- PROPULSION (7) --- (None) > --- UTILITY (10) ----- Experimental Optical Array Experimental Core Analyzer Experimental Armor Integrity Analyzer > --- WEAPON (4) ------- (None) > --- INVENTORY (5) ---- 2N-1CE's Frost Array Concept Antigrav Storage Unit Concept Weapon Articulator Peak State ------------ > --- POWER ------------ Micro Antimatter Reactor Light Quantum Reactor > --- PROPULSION ------- Gravjet Array Gravjet Array Gravjet Array Improved Diametric Drive > --- UTILITY ---------- 2N-1CE's Frost Array Concept Antigrav Storage Unit Experimental Optical Array Experimental Target Analyzer Experimental Core Analyzer Experimental Armor Integrity Analyzer Advanced Weapon Cycler Experimental Cloaking Device Centrium Medium Armor Plating A0-MCA's Component Scanner > --- WEAPON ----------- Concept XC Strikerail Perforator > --- INVENTORY -------- Advanced Transmission Jammer Centrium Medium Armor Plating Concept Concussive Dispersal Blaster UFD Drillbomb UFD Drillbomb [Rating: 247] Favorites ----------- Power Cooled Ion Engine Engine Cooled Ion Engine Power Core Micro Fission Core Reactor Micro Antimatter Reactor Propulsion Light Treads Treads Light Treads Leg Carbon-fiber Leg Hover Unit Gravjet Array Flight Unit Nuclear Pulse Array Utility High-capacity Storage Unit Device Advanced Heat Sink Storage High-capacity Storage Unit Processor Machine Analyzer Hackware System Shield Protection Centrium Medium Armor Plating Weapon Autogun Energy Gun Advanced Variable Charge Gun Energy Cannon Phase Cannon Ballistic Gun Autogun Ballistic Cannon Light Cannon Launcher Mini Grenade Launcher Special Weapon Improved Plasma Cutter Impact Weapon Maul Slashing Weapon Plasma Sword Build | -11 -10 -10 -9 -9 -9 -9 -6 -6 -6 -6 -6 -6 -6 -5 -5 -5 -5 -5 -5 -4 -4 -4 -4 -4 -3 -3 -3 -2 -2 -2 ------- Run | Yrd Mat Min Mat Sto Rec Scr Fac Was Fac Ext Cet Arc Hub Fac Was Fac Upp Upp War Pro Fac Upp Upp Zhi Pro Res Qua Res Tes Frg Slots Evolved 16 | . . . 2 . . . 6 . . . . . . 2 . . . . . . 2 . . . . 2 . 2 . . Power 1 | . . . . . . . . . . . . . . . . . . . . . . . . . . 1 . . . . Propulsion 5 | . . . . . . . 2 . . . . . . 2 . . . . . . . . . . . 1 . . . . Utility 8 | . . . . . . . 4 . . . . . . . . . . . . . 2 . . . . . . 2 . . Weapon 2 | . . . 2 . . . . . . . . . . . . . . . . . . . . . . . . . . . Parts Attached 264 | 6 7 3 15 10 . 12 3 . 6 38 14 3 3 18 2 12 . 3 14 1 27 1 . 3 2 9 1 8 10 33 Power 33 | 1 . . 4 4 . . 1 . 1 4 1 . . 3 . . . 1 1 . 4 . . 1 1 1 . . 1 4 Engine 11 | 1 . . 4 4 . . 1 . . 1 . . . . . . . . . . . . . . . . . . . . Core 10 | . . . . . . . . . 1 2 . . . 2 . . . 1 1 . 3 . . . . . . . . . Reactor 12 | . . . . . . . . . . 1 1 . . 1 . . . . . . 1 . . 1 1 1 . . 1 4 Propulsion 63 | 2 1 1 4 3 . 3 1 . 3 11 2 . . 3 . 3 . . . . 9 . . . . 4 1 3 3 6 Treads 16 | 2 1 1 3 3 . . . . . 4 2 . . . . . . . . . . . . . . . . . . . Leg 5 | . . . . . . . . . . 5 . . . . . . . . . . . . . . . . . . . . Wheel . | . . . . . . . . . . . . . . . . . . . . . . . . . . . . . . . Hover 4 | . . . . . . . . . . . . . . . . . . . . . . . . . . 1 . . . 3 Flight 38 | . . . 1 . . 3 1 . 3 2 . . . 3 . 3 . . . . 9 . . . . 3 1 3 3 3 Utility 90 | 1 3 1 1 . . 4 . . 1 11 4 3 3 9 1 3 . 2 6 1 11 . . 2 1 . . 3 2 17 Device 35 | . 1 1 . . . 1 . . . 7 2 2 . 3 . 2 . . 4 1 4 . . . 1 . . 2 1 3 Storage 9 | 1 2 . . . . . . . . 1 . . 2 1 . . . . 1 . . . . . . . . . . 1 Processor 13 | . . . . . . . . . 1 1 . . . 2 . . . 2 1 . 1 . . . . . . . . 5 Hackware 18 | . . . 1 . . 1 . . . . . . 1 2 1 1 . . . . 6 . . 1 . . . 1 1 2 Protection 15 | . . . . . . 2 . . . 2 2 1 . 1 . . . . . . . . . 1 . . . . . 6 Artifact . | . . . . . . . . . . . . . . . . . . . . . . . . . . . . . . . Weapon 78 | 2 3 1 6 3 . 5 1 . 1 12 7 . . 3 1 6 . . 7 . 3 1 . . . 4 . 2 4 6 Energy Gun 14 | 1 . . . 1 . . . . . 5 2 . . . 1 . . . 1 . . 1 . . . 2 . . . . Energy Cannon 8 | . . . . 1 . . 1 . 1 . 1 . . . . . . . . . 1 . . . . 2 . 1 . . Ballistic Gun 38 | 1 1 1 3 1 . 1 . . . 6 3 . . 2 . 5 . . 6 . 2 . . . . . . . 1 5 Ballistic Cannon 3 | . 1 . . . . . . . . . 1 . . . . . . . . . . . . . . . . . 1 . Launcher 4 | . 1 . . . . . . . . . . . . . . 1 . . . . . . . . . . . 1 . 1 Special Weapon 6 | . . . . . . 4 . . . . . . . 1 . . . . . . . . . . . . . . 1 . Impact Weapon 1 | . . . 1 . . . . . . . . . . . . . . . . . . . . . . . . . . . Slashing Weapon 4 | . . . 2 . . . . . . 1 . . . . . . . . . . . . . . . . . . 1 . Piercing Weapon . | . . . . . . . . . . . . . . . . . . . . . . . . . . . . . . . Special Melee Weapon . | . . . . . . . . . . . . . . . . . . . . . . . . . . . . . . . Unidentified Prototypes 26 | . . 1 3 3 . 1 . . . . 4 . . 1 . 2 . . 7 . 2 . . 1 . . . . . 1 Parts Lost 75 | . . . . . . 3 . . 4 3 12 . 4 1 . 5 . . . 1 10 . 1 . . 3 . . . 28 Power 11 | . . . . . . . . . 1 . 1 . 1 . . 1 . . . . 3 . . . . . . . . 4 Propulsion 20 | . . . . . . . . . 2 2 4 . . . . . . . . . 2 . 1 . . 1 . . . 8 Utility 22 | . . . . . . 1 . . . . 3 . 2 1 . 2 . . . 1 2 . . . . . . . . 10 Weapon 22 | . . . . . . 2 . . 1 1 4 . 1 . . 2 . . . . 3 . . . . 2 . . . 6 Highest Loss Streak 9 | . . . . . . 3 . . 1 2 9 . 3 1 . 4 . . . 1 4 . 1 . . 2 . . . 7 To Critical Strikes 4 | . . . . . . . . . . . 2 . . . . . . . . . . . . . . 1 . . . 1 Average Backups 12 | . 6 19 19 19 20 16 2 2 3 4 7 8 10 10 8 7 6 7 7 8 7 8 8 8 9 8 9 8 9 4 Power . | . 1 2 1 1 1 . . . . . . 1 1 . 1 . . . . . . . . . . . . . . . Propulsion 3 | . 1 6 4 6 8 5 . . . . . . . . 1 1 1 1 1 2 1 . . . . . . . 1 . Utility 5 | . 1 4 7 8 9 7 2 2 1 1 3 4 6 5 3 3 3 3 3 3 5 5 5 5 6 4 4 3 2 2 Weapon 3 | . 2 7 6 3 2 1 . . 1 2 3 3 3 3 2 2 2 3 3 3 1 3 3 2 2 2 3 3 3 . Tool/Special . | . . . . . . . . . . . . . . . . . . . . . . . . . . . . . . . Unused Backups 54 | . 3 1 3 10 . 10 . . . 2 . 1 . 2 . 1 . . 3 . 3 . . . . 3 2 3 3 4 Power 3 | . . . 1 1 . . . . . 1 . . . . . . . . . . . . . . . . . . . . Propulsion 15 | . 3 . 2 2 . 3 . . . . . . . . . . . . . . 2 . . . . 1 1 . . 1 Utility 22 | . . . . 4 . 6 . . . . . 1 . . . 1 . . 1 . 1 . . . . 2 1 3 . 2 Weapon 12 | . . 1 . 3 . . . . . 1 . . . 2 . . . . 2 . . . . . . . . . 3 . Tool/Special 2 | . . . . . . 1 . . . . . . . . . . . . . . . . . . . . . . . 1 Average Slot Usage (%) 88 | . 88 99 99 99 100 87 41 53 39 85 79 85 85 72 80 76 64 70 87 87 81 76 74 72 79 78 92 88 86 76 Engine 6 | . 14 14 11 11 11 8 1 6 4 1 . . . . . . . . . . . . . . . . . . . . Core 1 | . . . . . . . . . . 3 . . . 3 5 4 . 2 5 5 3 5 5 1 . . . . . . Reactor 1 | . . . . . . . . . . . 5 6 5 1 . . . . . . . . . 3 5 6 9 8 8 5 Treads 13 | . 27 28 21 22 22 14 . . . 15 11 13 13 4 . . . . . . . . . . . . . . . . Flight 8 | . . . . . . 7 24 26 18 4 . . . 10 17 18 23 23 23 23 21 31 27 26 26 25 30 27 30 16 Device 4 | . 3 13 2 . . . . . . 12 13 14 13 7 . . . . . . 6 5 5 5 5 7 9 15 20 15 Storage 8 | . 14 14 11 11 11 8 . . . . 6 6 6 5 5 5 5 5 5 5 5 5 5 5 5 4 4 4 4 2 Processor 4 | . . . . . . . . . 4 6 6 6 6 6 11 7 5 8 16 15 10 15 15 15 15 10 9 8 4 14 Hackware 7 | . . . 8 11 11 11 6 6 6 4 . . . 6 11 14 11 11 5 5 13 10 10 10 10 9 9 8 8 3 Protection 2 | . . . . . . . . . . 7 10 11 12 4 5 5 5 5 5 5 3 . . 3 5 4 4 5 3 3 Energy Gun 3 | . 14 5 . . . . . . . 11 7 . . 4 11 5 4 5 . . . 3 5 1 6 3 9 4 . . Ballistic Gun 22 | . 6 8 42 42 44 34 6 6 . 7 10 13 13 9 5 8 5 5 21 22 13 . . . . . . . . 5 Peak Build Rating 247 | 6 10 17 23 26 26 26 27 28 29 67 110 110 111 105 102 103 90 94 109 109 116 111 102 117 118 151 152 171 189 247 Average Rating 57 | 4 6 11 20 24 26 22 21 27 21 51 81 108 109 94 101 97 83 87 102 103 104 100 94 97 110 127 150 161 164 187 On Entrance 76 | . 6 10 12 21 26 26 14 27 28 27 65 110 110 89 91 102 80 83 91 104 101 103 102 94 109 118 150 151 163 165 Naked Turns . | . . . . . . . . . . . . . . . . . . . . . . . . . . . . . . . Heaviest Build 143 | 13 50 50 61 60 60 60 20 20 20 59 73 73 143 130 39 41 32 32 42 42 44 25 25 33 34 51 51 56 71 89 Greatest Support 160 | 40 40 40 40 46 46 46 20 20 20 100 160 160 160 160 39 42 28 41 41 41 50 37 37 37 37 60 56 56 59 90 Greatest Overweight (x) 8 | . 1 1 2 1 1 4 . . . 1 1 . . . . . 1 8 1 1 1 . . . . 1 . 1 1 1 Average Overweight (x) . | . . 1 1 1 1 . . . . . . . . . . . . . . . . . . . . . . . . . Largest Inventory Capacity 25 | 8 20 20 20 20 20 20 5 5 5 10 10 10 25 25 10 10 10 10 10 10 10 10 10 10 10 10 10 10 10 25 Average Capacity 15 | 7 16 20 20 20 20 16 5 5 5 5 10 10 17 15 10 10 10 10 10 10 9 10 10 10 10 10 10 10 10 15 Most Carried 24 | 1 20 20 20 20 20 20 4 4 5 9 10 10 15 22 10 10 9 10 10 10 10 9 9 10 10 10 10 10 10 24 Average Carried 13 | . 6 19 19 19 20 16 3 3 4 5 8 9 11 11 9 9 8 9 9 9 8 8 9 9 9 9 9 8 9 11 Final Capacity 25 | 8 20 20 20 20 20 5 5 5 5 10 10 10 25 10 10 10 10 10 10 10 10 10 10 10 10 10 10 10 10 5 Final Carried 20 | 1 20 20 20 20 20 5 3 4 4 9 10 10 15 10 10 8 9 10 9 10 8 9 9 10 10 9 10 9 10 3 Class Distribution -------------------- 23% | Commander-Gunner 15% | Gunner 14% | Mutant 13% | Hacker-Sprinter 11% | Scavenger-Tank 5% | Sprinter 4% | Commander-Mutant 3% | Scavenger-Sprinter 3% | Hacker-Mutant Dominant Class ---------------- Mutant | -10/Materials Mutant | -10/Mines Gunner | -9/Materials Commander-Gunner | -9/Storage Commander-Gunner | -9/Recycling Commander-Gunner | -9/Scraptown Commander-Gunner | -6/Factory Sprinter | -6/Waste Mutant | -6/Factory Scavenger-Tank | -6/Extension Scavenger-Tank | -6/Cetus Scavenger-Tank | -6/Archives Scavenger-Tank | -6/Hub_04(d) Scavenger-Tank | -5/Factory Hacker-Tank | -5/Waste Hacker-Tank | -5/Factory Hacker-Sprinter | -5/Upper Caves Hacker-Sprinter | -5/Upper Caves Sprinter | -5/Warlord Sprinter | -4/Proximity Caves Hacker-Sprinter | -4/Factory Hacker-Sprinter | -4/Upper Caves Hacker-Sprinter | -4/Upper Caves Hacker-Sprinter | -4/Zhirov Hacker-Sprinter | -3/Proximity Caves Hacker-Sprinter | -3/Research Hacker-Sprinter | -3/Quarantine Hacker-Sprinter | -2/Research Hacker-Mutant | -2/Testing Scavenger-Sprinter | -2/Protoforge Resources | -11 -10 -10 -9 -9 -9 -9 -6 -6 -6 -6 -6 -6 -6 -5 -5 -5 -5 -5 -5 -4 -4 -4 -4 -4 -3 -3 -3 -2 -2 -2 ----------- Run | Yrd Mat Min Mat Sto Rec Scr Fac Was Fac Ext Cet Arc Hub Fac Was Fac Upp Upp War Pro Fac Upp Upp Zhi Pro Res Qua Res Tes Frg Matter Collected 11777 | 227 256 86 1812 996 312 319 . . 22 746 431 256 139 347 . 297 139 360 348 . 1461 30 . . 151 170 . 6 315 2551 Remotely . | . . . . . . . . . . . . . . . . . . . . . . . . . . . . . . . Salvage Created 15059 | . 680 70 2047 1361 275 . . . 43 979 506 640 638 263 . 704 74 100 71 . 1400 . . . 119 . . 65 315 4709 Parts 792 | . 49 6 136 77 11 . . . . 31 21 31 21 17 . 54 2 13 1 . 56 . . . 10 . . 7 21 228 Haulers Intercepted 17 | . 1 . 6 5 . . . . . . . . 1 . . . . . . . 4 . . . . . . . . . Recyclers Shooed 5 | . 1 . . . . . . . . . . . . . . 2 . . . . 2 . . . . . . . . . Parts Field Recycled . | . . . . . . . . . . . . . . . . . . . . . . . . . . . . . . . Retrieved Matter . | . . . . . . . . . . . . . . . . . . . . . . . . . . . . . . . Parts Self-Destructed 18 | . . . . . . . . . . . . . . . . . 2 6 . 1 . . . . 9 . . . . . Prevented . | . . . . . . . . . . . . . . . . . . . . . . . . . . . . . . . Kills | -11 -10 -10 -9 -9 -9 -9 -6 -6 -6 -6 -6 -6 -6 -5 -5 -5 -5 -5 -5 -4 -4 -4 -4 -4 -3 -3 -3 -2 -2 -2 ------- Run | Yrd Mat Min Mat Sto Rec Scr Fac Was Fac Ext Cet Arc Hub Fac Was Fac Upp Upp War Pro Fac Upp Upp Zhi Pro Res Qua Res Tes Frg Combat Hostiles Destroyed 217 | . 18 3 33 16 2 . . . 1 7 8 4 7 3 . 15 4 9 . . 17 . . . 2 . . 4 3 61 Guns 140 | . 10 . 30 16 2 . . . . 7 3 3 5 3 . 8 1 . . . 15 . . . 2 . . . 1 34 Cannons 37 | . 2 . . . . . . . . . 5 . . . . . . . . . 1 . . . . . . . 2 27 AOE 37 | . 6 3 3 . . . . . . . . . 1 . . 7 3 9 . . 1 . . . . . . 4 . . Classes Destroyed 26 | . 7 . 3 2 1 . . . 1 2 . . . . . 1 1 . . . 1 . . . . . . . . 7 Worker 20 | . 2 . 6 1 . . . . . . . . 1 . . 1 . . . . 4 . . . . . . 1 . 4 Builder 14 | . . . 4 1 . . . . . . . . . . . 3 . . . . 5 . . . . . . . 1 . Tunneler 3 | . 1 . 2 . . . . . . . . . . . . . . . . . . . . . . . . . . . Hauler 18 | . 1 . 6 5 . . . . . . . . 1 . . . . . . . 4 . . . . . . . . 1 Recycler 14 | . 1 1 4 2 1 . . . . 4 . . . . . 1 . . . . . . . . . . . . . . Carrier 1 | . . . . . . . . . . . . . . . . . . . . . . . . . . . . . . 1 Mechanic 4 | . . . . 1 . . . . . . . . . . . 1 . . . . . . . . . . . . . 2 Operator 19 | . . . 5 1 . . . . . . . 9 . 1 . 1 . . . . 1 . . . . . . . 1 . Drone 7 | . . . . . . . . . . . . . . . . . . . . . . . . . . . . . . 7 Watcher 16 | . 3 . 4 1 . . . . . . 1 . 2 1 . 1 . . . . . . . . . . . . 1 2 Swarmer 57 | . 9 3 10 . . . . . . . . . . . . 9 4 9 . . 4 . . . . . . 4 . 5 Cutter 1 | . . . . . . . . . . . . . . . . 1 . . . . . . . . . . . . . . Grunt 56 | . 9 . 19 10 1 . . . . 3 . . 3 . . 1 . . . . 2 . . . . . . . . 8 Brawler 2 | . . . . . . . . . . . . . . . . . . . . . . . . . . . . . . 2 Duelist 1 | . . . . 1 . . . . . . . . . . . . . . . . . . . . . . . . . . Protector 3 | . . . . . . . . . . . . . . . . . . . . . 1 . . . . . . . . 2 Sentry 31 | . . . 4 5 2 . . . . 3 . 4 4 2 . . . . . . 3 . . . . . . . 1 3 Demolisher 1 | . . . . . 1 . . . . . . . . . . . . . . . . . . . . . . . . . Hunter 5 | . . . . . . . . . . . . . . . . . . . . . . . . . . . . . . 5 Programmer 21 | . . . . . . . . . 1 . . . . 1 . 4 . . . . 7 . . . 2 . . . 2 4 Behemoth 1 | . . . . . . . . . . 1 . . . . . . . . . . . . . . . . . . . . Cetus Guard 8 | . . . . . . . . . . . 8 . . . . . . . . . . . . . . . . . . . Hotshot 8 | . . . . . . . . . . . . . . . . . . . . . . . . . . . . . . 8 Decapitator 2 | . . . . . . . . . . . . . . . . . . . . . . . . . . . . . . 2 Striker 7 | . . . . . . . . . . . . . . . . . . . . . . . . . . . . . . 7 Executioner 6 | . . . . . . . . . . . . . . . . . . . . . . . . . . . . . . 6 Alpha 7 1 | . . . . . . . . . . . . . . . . . . . . . . . . . . . . . . 1 Scrapoid 1 | . . . . . . . . . . . . . . . . . . . . . . . . . . . . . . 1 Decomposer 3 | . . . . . . . . . . . . . . . . . . 3 . . . . . . . . . . . . Samaritan 1 | . . . . . . . . . . . . . . . . . 1 . . . . . . . . . . . . . Thug 2 | . . . . 1 . . . . . . . . . . . . . . 1 . . . . . . . . . . . Guerrilla 1 | . . . . . . . . . . 1 . . . . . . . . . . . . . . . . . . . . Best Kill Streak 20 | . 6 4 11 11 1 . . . 1 2 4 8 3 2 . 11 4 5 . . 8 . . . 1 . . 5 4 20 Combat Bots Only 19 | . 5 3 7 4 1 . . . 1 2 4 2 2 2 . 4 4 5 . . 5 . . . 1 . . 4 3 19 Max Kills in Single Turn 5 | . 4 2 3 2 1 . . . 1 1 1 1 2 1 . 3 3 3 1 . 4 . . . 1 . . 5 2 4 Gunslinging 1 | . . . 1 1 . . . . . . . . . . . . . . . . . . . . . . . . . . Exploded 4 | . 3 2 3 . . . . . . . . . 1 . . 3 3 3 . . 1 . . . . . . 4 . . Melee . | . . . . . . . . . . . . . . . . . . . . . . . . . . . . . . . Uniques/NPCs Destroyed . | . . . . . . . . . . . . . . . . . . . . . . . . . . . . . . . Combat | -11 -10 -10 -9 -9 -9 -9 -6 -6 -6 -6 -6 -6 -6 -5 -5 -5 -5 -5 -5 -4 -4 -4 -4 -4 -3 -3 -3 -2 -2 -2 -------- Run | Yrd Mat Min Mat Sto Rec Scr Fac Was Fac Ext Cet Arc Hub Fac Was Fac Upp Upp War Pro Fac Upp Upp Zhi Pro Res Qua Res Tes Frg Hostile Shots Fired 1940 | . 49 12 80 41 13 61 . . 116 134 129 8 136 40 . 199 15 14 10 28 322 . 4 . 30 67 10 53 12 357 Missed 823 | . 17 2 24 12 3 27 . . 61 54 31 1 45 25 . 92 7 6 3 14 177 . 1 . 18 30 6 23 3 141 Hits 1117 | . 32 10 56 29 10 34 . . 55 80 98 7 91 15 . 107 8 8 7 14 145 . 3 . 12 37 4 30 9 216 Melee 30 | . . . . . . . . . . . . . 3 . . 2 . . . . . . . . . . . . . 25 Projectile 1087 | . 32 10 56 29 10 34 . . 55 80 98 7 88 15 . 105 8 8 7 14 145 . 3 . 12 37 4 30 9 191 AOE 8 | . . . . . 1 . . . . . . . . 1 . 1 . . 3 . . . . . . . . . . 2 Critical Strikes 66 | . . 1 1 1 1 1 . . . 3 19 . 6 . . 6 . . . . 9 . . . . 2 . 1 1 14 Actively Blocked 3 | . . . . . . . . . . . . . . . . . . . . . . . . . . . . . . 3 Part Disruptions 2 | . . . . . . . . . . . . . 1 . . 1 . . . . . . . . . . . . . . Damage Taken 23496 | . 363 142 549 485 167 550 . . 620 924 2579 156 1682 313 . 2163 151 142 254 217 2646 . 61 . 122 889 58 667 314 7282 Core 3558 | . 50 54 59 25 34 215 . . 238 130 359 24 50 21 . 197 20 39 40 52 319 . . . 50 177 . 142 72 1191 Absorbed by Shields 40 | . . . . . . 11 . . . . . . . . . . . . . . . . . . . 20 . . . 9 Reduced by Siege Mode 74 | . . . . . . . . . . . 43 6 25 . . . . . . . . . . . . . . . . . Redirected to Shielding 705 | . . . . . . . . . . . . . . . . . . . . . . . . . . 26 . 101 . 578 Ignored by Resistances 27 | . . . . . . . . . . 27 . . . . . . . . . . . . . . . . . . . . Regen/Repaired (Parts) 2790 | . 84 . 253 235 . . . . 30 . . . . 397 . 762 . . 58 . 665 . . . . 304 . . . 2 Core Remaining (%) 56 | 100 . 58 . . . 16 . . . . . . 5 . . . . . . 63 . . . . 67 . 86 . . . Volleys Fired 714 | . 47 4 92 42 9 1 . . 3 25 47 27 22 20 . 52 13 12 5 5 87 . . . 5 23 4 14 12 143 Largest 4 | . 2 1 4 4 4 3 . . 2 4 4 4 4 3 . 3 2 1 4 4 4 . . . 2 3 1 1 1 4 Hottest 269 | . 80 30 92 92 92 69 . . 170 243 269 235 235 193 . 148 110 80 240 118 178 . . . 168 173 113 120 120 128 Shots Fired 1771 | . 92 4 363 168 39 3 . . 5 86 143 102 69 42 . 89 15 12 17 8 232 . . . 11 25 4 14 12 216 Gun 1499 | . 73 . 362 168 39 3 . . . 86 91 50 34 38 . 86 14 8 17 8 213 . . . 11 3 . . 8 187 Cannon 253 | . 17 . . . . . . . 5 . 52 52 35 4 . . . . . . 17 . . . . 22 4 13 4 28 Launcher 19 | . 2 4 1 . . . . . . . . . . . . 3 1 4 . . 2 . . . . . . 1 . 1 Special . | . . . . . . . . . . . . . . . . . . . . . . . . . . . . . . . Kinetic 1326 | . 45 . 362 168 39 3 . . . 33 63 50 34 18 . 58 6 6 16 4 196 . . . . . . . 10 215 Thermal 426 | . 45 . . . . . . . 5 53 80 52 35 24 . 28 8 2 1 4 34 . . . 11 25 4 13 2 . Explosive 19 | . 2 4 1 . . . . . . . . . . . . 3 1 4 . . 2 . . . . . . 1 . 1 Electromagnetic . | . . . . . . . . . . . . . . . . . . . . . . . . . . . . . . . Robot Hit Streak 28 | . 10 . 12 10 11 2 . . 3 14 28 22 11 8 . 7 6 2 4 . 15 . . . 4 . . 4 18 26 Robot Miss Streak 11 | . 4 1 5 9 2 1 . . 1 6 5 3 3 3 . 3 6 1 3 . 5 . . . 1 . . 1 4 11 Penetration Max 3 | . . . . . . . . . . . 1 1 1 1 . 1 . . . . 1 . . . . . . . 1 3 Secondary Targets 18 | . 2 . 4 4 2 . . . . 1 2 . . . . . . . . . 1 . . . . . . . . 2 Max Gunslinging Chain 2 | . 1 . 1 2 1 . . . . 1 1 . . . . . . . . . 1 . . . . . . . . 1 Shots Hit Robots 999 | . 50 . 178 87 33 2 . . 4 62 105 57 42 14 . 34 8 4 8 . 114 . . . 7 . . 1 12 177 Core Hits 589 | . 33 3 77 49 9 1 . . . 36 38 25 25 8 . 25 4 9 4 . 52 . . . 4 . . 6 12 169 Critical Kills 89 | . . . 1 . . . . . 1 1 1 2 1 3 . 4 . . 1 . 9 . . . . . . . 4 61 Critical Parts Destroyed 96 | . . . 1 . 1 . . . . . 3 2 2 . . 6 . . 1 . 12 . . . 1 . . . 5 62 Critical Strikes 205 | . 3 . 2 . 1 . . . 1 1 9 4 3 3 . 11 . . 2 . 21 . . . 1 . . . 12 131 Burn 6 | . 3 . . . . . . . . . 3 . . . . . . . . . . . . . . . . . . . Meltdown 3 | . . . . . . . . . 1 . . 1 1 . . . . . . . . . . . . . . . . . Destroy 196 | . . . 2 . 1 . . . . 1 6 3 2 3 . 11 . . 2 . 21 . . . 1 . . . 12 131 Melee Attacks 28 | . . . 3 1 . . . . . 7 . . . . . . . . . . . . . . . . . . 9 8 Impact 1 | . . . 1 . . . . . . . . . . . . . . . . . . . . . . . . . . . Slashing 27 | . . . 2 1 . . . . . 7 . . . . . . . . . . . . . . . . . . 9 8 Piercing . | . . . . . . . . . . . . . . . . . . . . . . . . . . . . . . . Sneak Attacks 7 | . . . . . . . . . . 4 . . . . . . . . . . . . . . . . . . 1 2 Combat Hostiles 1 | . . . . . . . . . . . . . . . . . . . . . . . . . . . . . . 1 Follow-up Attacks . | . . . . . . . . . . . . . . . . . . . . . . . . . . . . . . . Damage Inflicted 30127 | . 883 266 3291 1661 476 51 . . 150 1547 2634 1574 1739 396 . 2448 566 1274 219 . 4764 . . . 237 . . 596 275 5080 Guns 19221 | . 465 . 3034 1643 455 45 . . . 1219 1469 643 679 396 . 1634 201 87 219 . 2691 . . . 237 . . . 72 4032 Cannons 3705 | . 159 . . . . . . . 150 . 1165 930 568 . . . . . . . 239 . . . . . . . 28 466 Explosions 6242 | . 238 266 193 . . . . . . . . . 482 . . 814 365 1187 . . 1834 . . . . . . 596 . 267 Melee 800 | . . . . . . . . . . 311 . . . . . . . . . . . . . . . . . . 175 314 Ramming 159 | . 21 . 64 18 21 6 . . . 17 . 1 10 . . . . . . . . . . . . . . . . 1 Kinetic 17677 | . 259 . 3034 1643 455 45 . . . 407 1121 643 679 255 . 1527 43 87 219 . 2691 . . . . . . . 100 4469 Thermal 6782 | . 365 . . . . . . . 150 812 1513 930 568 141 . 305 158 . . . 1603 . . . 237 . . . . . Explosive 4198 | . 238 266 193 . . . . . . . . . . . . 616 365 1187 . . 470 . . . . . . 596 . 267 Electromagnetic 482 | . . . . . . . . . . . . . 482 . . . . . . . . . . . . . . . . . Impact 29 | . . . . . . . . . . . . . . . . . . . . . . . . . . . . . . 29 Slashing 800 | . . . . . . . . . . 311 . . . . . . . . . . . . . . . . . . 175 314 Piercing . | . . . . . . . . . . . . . . . . . . . . . . . . . . . . . . . Highest Corruption 11 | . 1 1 3 10 10 . . 8 11 11 6 6 3 4 4 8 6 6 6 . 7 7 7 7 8 3 3 . 4 9 Average Corruption 5 | . 1 1 2 7 10 . . 8 10 9 6 5 2 2 4 6 6 6 6 . 3 7 7 7 7 3 3 . 3 5 Corruption Purged 16 | . . . . . . . . . . 5 . 6 . . . 2 . . . . 3 . . . . . . . . . Corruption Blocked . | . . . . . . . . . . . . . . . . . . . . . . . . . . . . . . . Effects 382 | . 10 9 42 60 64 . . 1 9 49 14 5 . 4 . 29 7 10 . . 19 2 1 2 6 2 4 . 2 31 Message Errors 88 | . 1 3 10 20 11 . . 1 1 16 2 . . 1 . 7 1 4 . . 2 2 . 1 . . 1 . . 4 Matter Fused 117 | . 5 2 14 19 24 . . . 2 13 3 . . 1 . 7 4 3 . . 6 . . 1 1 . 1 . 1 10 Heat Flow Errors 37 | . 1 3 4 2 10 . . . . 4 . . . . . 1 1 . . . 2 . . . 2 . . . . 7 Energy Discharges 36 | . . . 2 10 6 . . . . 2 2 2 . . . 2 1 1 . . 2 . . . . 2 2 . . 2 Parts Rejected 5 | . . . . 2 . . . . . 1 . . . . . . . . . . 2 . . . . . . . . . Parts Fused 4 | . . . 1 1 . . . . . . . . . . . 1 . 1 . . . . . . . . . . . . Data Loss (minor) 45 | . 2 1 5 4 6 . . . . 4 3 2 . 2 . 6 . 1 . . 3 . 1 . 1 . . . 1 3 Data Loss (major) 11 | . 1 . 1 2 2 . . . 1 1 . . . . . . . . . . 1 . . . . . . . . 2 Misfires 13 | . . . 3 . 3 . . . . 2 . . . . . 3 . . . . . . . . 1 . . . . 1 Alerts 8 | . . . . . 2 . . . . 2 . 1 . . . 1 . . . . 1 . . . 1 . . . . . Misdirections 6 | . . . . . . . . . 4 2 . . . . . . . . . . . . . . . . . . . . Weapon Failures 12 | . . . 2 . . . . . 1 2 4 . . . . 1 . . . . . . . . . . . . . 2 Overload Shots 1 | . . . . . . . . . . . . . . . . . . . 1 . . . . . . . . . . . Overflow Damage 1064 | . 2 26 11 . . . . . 23 105 20 40 18 . . 174 124 145 . . 305 . . . . . . 41 . 30 Projectiles 103 | . 2 . . . . . . . 23 . 20 40 18 . . . . . . . . . . . . . . . . . Explosions 826 | . . 26 11 . . . . . . . . . . . . 174 124 145 . . 305 . . . . . . 41 . . Melee 135 | . . . . . . . . . . 105 . . . . . . . . . . . . . . . . . . . 30 Knockbacks 21 | . 1 . . . . 1 . . . 2 1 . . . . . . . . . . . . . . . . . 2 14 Impact 3 | . . . . . . 1 . . . 2 . . . . . . . . . . . . . . . . . . . . Kinetic 17 | . 1 . . . . . . . . . 1 . . . . . . . . . . . . . . . . . 2 13 Secondary 1 | . . . . . . . . . . . . . . . . . . . . . . . . . . . . . . 1 Self-Inflicted Damage 412 | . 41 60 . . . 3 . . . . . . 104 . . 109 . . . . 95 . . . . . . . . . Shots 9 | . 1 3 . . . . . . . . . . 1 . . 2 . . . . 2 . . . . . . . . . Rammed 29 | . 4 . 8 5 3 1 . . . 2 . 1 3 . . . . . . . . . . . . . . . . 2 Targets Rammed 33 | . 5 . 11 5 3 1 . . . 2 . 1 3 . . . . . . . . . . . . . . . . 2 Kicked . | . . . . . . . . . . . . . . . . . . . . . . . . . . . . . . . Crushed 4 | . 1 . 3 . . . . . . . . . . . . . . . . . . . . . . . . . . . Highest Temperature 515 | . 149 258 515 220 323 65 . . 159 177 155 266 224 243 . 303 107 28 194 99 423 . 7 . 153 188 128 230 277 214 Average Temperature 72 | . 40 101 87 65 96 32 . . 80 46 45 102 69 73 . 88 33 11 48 42 75 . 4 . 60 71 66 72 70 95 Received Heat Transfer 2736 | . 54 . 171 186 60 289 . . 87 214 189 18 393 21 . 156 18 30 39 . 249 . 21 . . 27 9 63 18 424 Effects 6 | . . . 1 . . . . . . . . . . 1 . 2 . . . . 2 . . . . . . . . . Energy Bleed 2 | . . . . . . . . . . . . . . 1 . . . . . . 1 . . . . . . . . . Interference 3 | . . . . . . . . . . . . . . . . 2 . . . . 1 . . . . . . . . . Matter Decay 1 | . . . 1 . . . . . . . . . . . . . . . . . . . . . . . . . . . Siege Activations 5 | . . . . . . . . . . . 1 3 1 . . . . . . . . . . . . . . . . . Total Turns 147 | . . . . . . . . . . . 53 80 14 . . . . . . . . . . . . . . . . . Longest Duration 60 | . . . . . . . . . . . 53 60 14 . . . . . . . . . . . . . . . . . Martial Activations . | . . . . . . . . . . . . . . . . . . . . . . . . . . . . . . . Shielding Activations . | . . . . . . . . . . . . . . . . . . . . . . . . . . . . . . . Robots Disrupted . | . . . . . . . . . . . . . . . . . . . . . . . . . . . . . . . Combat Hostiles . | . . . . . . . . . . . . . . . . . . . . . . . . . . . . . . . Robots Corrupted . | . . . . . . . . . . . . . . . . . . . . . . . . . . . . . . . Combat Hostiles . | . . . . . . . . . . . . . . . . . . . . . . . . . . . . . . . Parts Fried 2 | . . . . . . . . . . . . . 2 . . . . . . . . . . . . . . . . . Impact Corruptions . | . . . . . . . . . . . . . . . . . . . . . . . . . . . . . . . Robots Melted 3 | . . . . . . . . . 1 . . 1 1 . . . . . . . . . . . . . . . . . Combat Hostiles 3 | . . . . . . . . . 1 . . 1 1 . . . . . . . . . . . . . . . . . Parts Melted 27 | . 2 . . . . . . . 3 3 2 8 1 . . . 1 . . . 2 . . . 5 . . . . . Heat Transferred 10012 | . 1295 . . . . . . . 148 1554 2750 1455 857 148 . 211 222 . . . 1113 . . . 259 . . . . . Parts Sabotaged . | . . . . . . . . . . . . . . . . . . . . . . . . . . . . . . . Parts Stolen . | . . . . . . . . . . . . . . . . . . . . . . . . . . . . . . . Parts Stripped . | . . . . . . . . . . . . . . . . . . . . . . . . . . . . . . . Power Chain Reactions . | . . . . . . . . . . . . . . . . . . . . . . . . . . . . . . . Alert | -11 -10 -10 -9 -9 -9 -9 -6 -6 -6 -6 -6 -6 -6 -5 -5 -5 -5 -5 -5 -4 -4 -4 -4 -4 -3 -3 -3 -2 -2 -2 ------- Run | Yrd Mat Min Mat Sto Rec Scr Fac Was Fac Ext Cet Arc Hub Fac Was Fac Upp Upp War Pro Fac Upp Upp Zhi Pro Res Qua Res Tes Frg Maximum Alert Level 4 | . . . 2 2 1 . . . . 3 1 . 1 1 . 4 . . . . 4 . . . . . . 2 1 4 Low Security (%) 57 | 100 100 100 53 4 91 . 100 100 100 14 45 100 94 99 100 29 . . . . 14 . . . . 100 100 28 59 13 Level 1 19 | . . . 34 19 8 . . . . 6 54 . 5 . . 24 . . . . 58 . . . . . . 62 40 21 Level 2 18 | . . . 12 75 . . . . . 78 . . . . . 33 . . . . . . . . . . . 8 . 30 Level 3 2 | . . . . . . . . . . . . . . . . 12 . . . . 14 . . . . . . . . 14 Level 4 2 | . . . . . . . . . . . . . . . . . . . . . 12 . . . . . . . . 19 Level 5 . | . . . . . . . . . . . . . . . . . . . . . . . . . . . . . . . High Security . | . . . . . . . . . . . . . . . . . . . . . . . . . . . . . . . Max Security . | . . . . . . . . . . . . . . . . . . . . . . . . . . . . . . . Peak Influence 1578 | . 196 150 460 607 268 . . . 189 703 352 188 327 222 77 1134 . . . . 1407 . . . . 97 144 431 292 1578 Initial 352 | . . 73 . 190 191 . . . . 82 352 59 . 156 77 39 . . . . 278 . . . . 16 40 81 227 97 Average 245 | . 38 23 187 467 102 . . . 68 492 220 68 92 120 70 375 . . . . 492 . . . . 43 68 243 145 623 Influence Increases 14942 | . 591 97 1163 1124 472 . . . 279 1171 179 203 522 426 . 1553 165 290 120 225 2303 . 30 . 75 393 184 671 351 2355 Destroy 0b10 Robot/C 5300 | . 360 60 680 620 220 . . . 40 620 160 80 140 60 . 300 80 180 . . 460 . . . 40 . . 80 60 1060 Destroy 0b10 Robot/NC 625 | . 40 5 155 70 10 . . . . 45 5 45 20 10 . 40 . . . . 75 . . . . . . 5 15 85 Destroy Leader 1070 | . 78 10 200 164 . . . . 20 104 . . 66 22 . 32 10 20 . . 118 . . . 20 . . 10 12 184 Allied During Kill 674 | . . . 16 176 102 . . . 3 292 . . . . . . . . . . 85 . . . . . . . . . Successful Hack 569 | . 19 . 18 48 20 . . . 5 34 . . 5 60 . 118 . . . . 82 . . . . 40 . 21 6 93 Select Force Hacks 270 | . 60 . 60 30 120 . . . . . . . . . . . . . . . . . . . . . . . . . Disable Machine 855 | . . . 15 15 . . . . . 15 . 60 120 30 . 90 . . . . 300 . . . . . 30 15 90 75 Destroy Structure 1064 | . 19 22 19 1 . . . . 1 31 14 18 126 34 . 208 . . . . 238 . . . . 38 4 90 18 183 Advance Influence 150 | . . . . . . . . . . . . . . . . . . . . . 150 . . . . . . . . . Partial Spotted 585 | . . . . . . . . . . . . . . 30 . 45 . . . . 75 . . . . 120 75 75 60 105 Lose Combat Pursuer 3780 | . 15 . . . . . . . 210 30 . . 45 180 . 720 75 90 120 225 720 . 30 . 15 195 75 375 90 570 Influence Decreases 13400 | . 401 287 712 1083 951 13 . . 110 711 659 352 203 523 165 482 528 306 869 20 1181 522 174 661 50 345 113 411 581 987 Entered New Map 4528 | . . 117 . 261 301 13 . . . 87 277 90 . 163 145 18 418 146 749 . 77 492 154 661 . 9 33 63 177 77 Time Decay 6527 | . 401 170 672 612 568 . . . 80 474 222 262 172 350 20 404 110 160 120 10 574 30 10 . 50 189 80 198 119 470 Search Patrol Dispatched 150 | . . . . . . . . . . . . . . . . . . . . . . . . . . . . 150 . . Lost Part 701 | . . . . . . . . . 30 30 120 . 31 10 . 50 . . . 10 100 . 10 . . 30 . . . 280 Lost Ally 522 | . . . 40 60 82 . . . . 120 40 . . . . 10 . . . . 130 . . . . 30 . . . 10 Purge Threat 972 | . . . . 150 . . . . . . . . . . . . . . . . 300 . . . . 87 . . 285 150 Squads Dispatched 92 | . 6 1 11 5 . . . . 1 4 . . 6 5 . 11 . . . . 16 . . . . 7 1 8 1 9 Investigation 39 | . 4 1 6 1 . . . . 1 2 . . 2 3 . 5 . . . . 4 . . . . 4 . 3 . 3 Extermination 16 | . . . . . . . . . . . . . . 2 . 2 . . . . 7 . . . . . 1 2 1 1 Reinforcement 31 | . 2 . 5 2 . . . . . 1 . . 2 . . 4 . . . . 4 . . . . 3 . 3 . 5 Assault 6 | . . . . 2 . . . . . 1 . . 2 . . . . . . . 1 . . . . . . . . . Garrison . | . . . . . . . . . . . . . . . . . . . . . . . . . . . . . . . Intercept . | . . . . . . . . . . . . . . . . . . . . . . . . . . . . . . . Searches Triggered 1 | . . . . . . . . . . . . . . . . . . . . . . . . . . . . 1 . . Construction Impeded 5 | . . . . . . . . . . . . . 2 . . 1 . . . . 2 . . . . . . . . . Haulers Reinforced 3 | . . . . . . . . . . . . . . . . . . . . . 2 . . . . 1 . . . . Active Scanning Responses . | . . . . . . . . . . . . . . . . . . . . . . . . . . . . . . . Cargo Convoy Interrupts 1 | . . . . . . . . . . . . . . . . . . . . . 1 . . . . . . . . . Stealth | -11 -10 -10 -9 -9 -9 -9 -6 -6 -6 -6 -6 -6 -6 -5 -5 -5 -5 -5 -5 -4 -4 -4 -4 -4 -3 -3 -3 -2 -2 -2 --------- Run | Yrd Mat Min Mat Sto Rec Scr Fac Was Fac Ext Cet Arc Hub Fac Was Fac Upp Upp War Pro Fac Upp Upp Zhi Pro Res Qua Res Tes Frg Distress Signals 49 | . 1 . 5 3 . . . . . 2 2 . 1 2 . 2 . . 2 . 4 . . . . 7 . 4 1 13 Communications Jammed 12 | . . . . . . . . . . . . . . . . . . . . . 1 . . . . . . 7 . 4 Distress Signals 12 | . . . . . . . . . . . . . . . . . . . . . 1 . . . . . . 7 . 4 Times Spotted 843 | . 23 3 49 36 12 33 . 6 20 39 12 11 25 31 6 82 9 15 81 17 94 . 3 . 4 25 10 43 14 140 Peak Tracking Total 29 | . 4 3 6 9 5 26 . 6 12 6 5 1 13 12 6 16 5 6 19 17 17 . 3 . 2 9 8 18 6 29 Tactical Retreats 94 | . 1 . . . . . . . 5 2 . . 2 4 . 17 3 3 3 2 16 . 1 . 2 5 2 9 3 14 Traps | -11 -10 -10 -9 -9 -9 -9 -6 -6 -6 -6 -6 -6 -6 -5 -5 -5 -5 -5 -5 -4 -4 -4 -4 -4 -3 -3 -3 -2 -2 -2 ------- Run | Yrd Mat Min Mat Sto Rec Scr Fac Was Fac Ext Cet Arc Hub Fac Was Fac Upp Upp War Pro Fac Upp Upp Zhi Pro Res Qua Res Tes Frg Traps Triggered 24 | . 3 . 3 4 . . 1 . 2 . . . . 1 . . . . . . 3 . . . . 3 . . 1 3 Indirectly . | . . . . . . . . . . . . . . . . . . . . . . . . . . . . . . . Trap Hack Attempts . | . . . . . . . . . . . . . . . . . . . . . . . . . . . . . . . Triggered . | . . . . . . . . . . . . . . . . . . . . . . . . . . . . . . . Disarmed . | . . . . . . . . . . . . . . . . . . . . . . . . . . . . . . . Reprogrammed . | . . . . . . . . . . . . . . . . . . . . . . . . . . . . . . . Reused . | . . . . . . . . . . . . . . . . . . . . . . . . . . . . . . . Traps Extracted . | . . . . . . . . . . . . . . . . . . . . . . . . . . . . . . . Installed . | . . . . . . . . . . . . . . . . . . . . . . . . . . . . . . . Triggered . | . . . . . . . . . . . . . . . . . . . . . . . . . . . . . . . Machines | -11 -10 -10 -9 -9 -9 -9 -6 -6 -6 -6 -6 -6 -6 -5 -5 -5 -5 -5 -5 -4 -4 -4 -4 -4 -3 -3 -3 -2 -2 -2 ---------- Run | Yrd Mat Min Mat Sto Rec Scr Fac Was Fac Ext Cet Arc Hub Fac Was Fac Upp Upp War Pro Fac Upp Upp Zhi Pro Res Qua Res Tes Frg Machines Disabled 67 | . . . 2 1 . . . . . 1 . 4 8 2 . 6 . . 1 1 20 . . . . . 2 1 7 11 Max in Single Turn 10 | . . . 1 1 . . . . . . . 1 5 1 . 3 . . 1 1 10 . . . . . 1 1 1 2 Garrison Access 6 | . . . . . . . . . . . . . 1 1 . 2 . . . . 1 . . . . . 1 . . . Network Hub 1 | . . . . . . . . . . . . . 1 . . . . . . . . . . . . . . . . . Energy Cycler 1 | . . . . . . . . . . 1 . . . . . . . . . . . . . . . . . . . . Machines Repaired . | . . . . . . . . . . . . . . . . . . . . . . . . . . . . . . . Machines Dismantled . | . . . . . . . . . . . . . . . . . . . . . . . . . . . . . . . Machines Sabotaged . | . . . . . . . . . . . . . . . . . . . . . . . . . . . . . . . Overloaded Fab Kills . | . . . . . . . . . . . . . . . . . . . . . . . . . . . . . . . Hacking | -11 -10 -10 -9 -9 -9 -9 -6 -6 -6 -6 -6 -6 -6 -5 -5 -5 -5 -5 -5 -4 -4 -4 -4 -4 -3 -3 -3 -2 -2 -2 --------- Run | Yrd Mat Min Mat Sto Rec Scr Fac Was Fac Ext Cet Arc Hub Fac Was Fac Upp Upp War Pro Fac Upp Upp Zhi Pro Res Qua Res Tes Frg Machines Accessed 159 | . 8 2 9 15 11 3 . . 3 9 . . 5 8 . 17 . 2 4 1 23 . . 4 . 11 3 6 5 10 Terminals 83 | . 5 . 4 12 6 . . . 1 9 . . 3 3 . 9 . . . 1 12 . . . . 6 2 2 3 5 Fabricators 8 | . . . . . . . . . . . . . . 1 . . . . . . 2 . . . . 1 . 2 1 1 Repair Stations 13 | . 1 . 2 2 . . . . 1 . . . . 1 . 1 . . . . 3 . . . . . . . 1 1 Recycling Units 29 | . 2 . 2 1 5 . . . 1 . . . . 1 . 5 . . . . 4 . . . . 3 . 2 . 3 Scanalyzers 4 | . . . 1 . . . . . . . . . . 1 . . . . . . 1 . . . . 1 . . . . Garrison Access 7 | . . . . . . . . . . . . . 2 1 . 2 . . . . 1 . . . . . 1 . . . Total Hacks 588 | . 30 2 31 56 28 22 . . 8 25 . . 16 26 . 63 . 2 11 5 102 . . 17 . 57 7 23 20 37 Successful 345 | . 13 2 20 31 15 22 . . 4 9 . . 5 16 . 43 . 2 11 5 68 . . 17 . 27 3 8 8 16 Failed 243 | . 17 . 11 25 13 . . . 4 16 . . 11 10 . 20 . . . . 34 . . . . 30 4 15 12 21 Catastrophic 33 | . 2 . 2 4 . . . . . 4 . . 1 3 . 1 . . . . 3 . . . . 5 1 2 2 3 Database Lockouts . | . . . . . . . . . . . . . . . . . . . . . . . . . . . . . . . Manual 261 | . 26 . 9 30 25 . . . 4 17 . . 10 10 . 31 . . . . 48 . . . . 28 1 10 5 7 Terminals 356 | . 24 . 12 49 20 . . . 3 25 . . 12 11 . 44 . . . 5 59 . . . . 36 5 10 17 24 Fabricators 26 | . . . . . . . . . . . . . . 5 . . . . . . 8 . . . . 2 . 6 2 3 Repair Stations 58 | . 3 . 9 6 . . . . 4 . . . . 5 . 11 . . . . 15 . . . . . . . 1 4 Recycling Units 55 | . 3 . 3 1 8 . . . 1 . . . . 1 . 6 . . . . 14 . . . . 5 . 7 . 6 Scanalyzers 29 | . . . 7 . . . . . . . . . . 3 . . . . . . 5 . . . . 14 . . . . Garrison Access 10 | . . . . . . . . . . . . . 4 1 . 2 . . . . 1 . . . . . 2 . . . Terminal Hacks 167 | . 3 2 1 13 3 22 . . . 3 . . 3 6 . 19 . 2 11 5 25 . . 17 . 11 2 3 6 10 Record 43 | . . . . . . 22 . . . . . . . . . . . . 10 5 . . . 5 . 1 . . . . Part Schematic 10 | . 2 . . 1 1 . . . . . . . . . . . . . . . 2 . . 4 . . . . . . Robot Schematic 1 | . . . . 1 . . . . . . . . . . . . . . . . . . . . . . . . . . Robot Analysis 8 | . 1 . 1 1 . . . . . . . . . . . 1 . . . . . . . 4 . . . . . . Prototype ID Bank 5 | . . . . . . . . . . . . . . . . 1 . . . . . . . 4 . . . . . . Open Door 12 | . . 2 . 6 . . . . . 1 . . . . . . . 2 1 . . . . . . . . . . . Level Access Points 1 | . . . . . . . . . . . . . . 1 . . . . . . . . . . . . . . . . Branch Access Points 4 | . . . . . . . . . . . . . . . . 1 . . . . 1 . . . . 1 . 1 . . Machine Index 1 | . . . . . . . . . . . . . . . . . . . . . . . . . . . . . . 1 Terminal Index 3 | . . . . . . . . . . . . . 1 . . 1 . . . . 1 . . . . . . . . . Recycling Unit Index 2 | . . . . . . . . . . . . . . 1 . 1 . . . . . . . . . . . . . . Scanalyzer Index 1 | . . . . . . . . . . . . . . . . . . . . . 1 . . . . . . . . . Garrison Index 1 | . . . . . . . . . . . . . . . . . . . . . 1 . . . . . . . . . Alert Level 10 | . . . . 1 . . . . . . . . 1 . . 2 . . . . 2 . . . . 1 1 1 . 1 Unreport Threat 8 | . . . . 1 . . . . . . . . . . . . . . . . 2 . . . . 1 . . 3 1 Locate Traps 4 | . . . . . . . . . . . . . . 1 . 2 . . . . . . . . . 1 . . . . Dispatch Records 2 | . . . . . . . . . . . . . . . . . . . . . 1 . . . . . . . . 1 Recall Investigation 2 | . . . . . . . . . . . . . . . . 1 . . . . . . . . . 1 . . . . Recall Extermination 4 | . . . . . . . . . . . . . . . . 1 . . . . 3 . . . . . . . . . Recall Reinforcements 4 | . . . . . . . . . . . . . . . . 1 . . . . 3 . . . . . . . . . Hauler Manifests 9 | . . . . 1 1 . . . . . . . . 1 . . . . . . 2 . . . . 1 . 1 1 1 Registered Components 3 | . . . . . . . . . . . . . . 1 . . . . . . 1 . . . . 1 . . . . Registered Prototypes 5 | . . . . . . . . . . . . . . 1 . 1 . . . . 1 . . . . 1 . . . 1 Zone Layout 24 | . . . . 1 1 . . . . 2 . . 1 . . 6 . . . . 4 . . . . 2 1 . 2 4 Fabricator Hacks 11 | . . . . . . . . . . . . . . . . . . . . . 5 . . . . 2 . 3 . 1 Load Schematic 6 | . . . . . . . . . . . . . . . . . . . . . 2 . . . . 1 . 2 . 1 Build 5 | . . . . . . . . . . . . . . . . . . . . . 3 . . . . 1 . 1 . . Repair Station Hacks 43 | . 2 . 7 6 . . . . 2 . . . . 4 . 10 . . . . 11 . . . . . . . . 1 Scan Component 23 | . 1 . 4 3 . . . . 1 . . . . 2 . 5 . . . . 6 . . . . . . . . 1 Repair 20 | . 1 . 3 3 . . . . 1 . . . . 2 . 5 . . . . 5 . . . . . . . . . Recycling Unit Hacks . | . . . . . . . . . . . . . . . . . . . . . . . . . . . . . . . Scanalyzer 19 | . . . 5 . . . . . . . . . . 1 . . . . . . 5 . . . . 8 . . . . Insert Component 12 | . . . 3 . . . . . . . . . . 1 . . . . . . 4 . . . . 4 . . . . Analyze 7 | . . . 2 . . . . . . . . . . . . . . . . . 1 . . . . 4 . . . . Garrison Access Hacks 5 | . . . . . . . . . . . . . . 1 . 2 . . . . 1 . . . . . 1 . . . Seal Access 5 | . . . . . . . . . . . . . . 1 . 2 . . . . 1 . . . . . 1 . . . Unauthorized Hacks 98 | . 8 . 6 11 12 . . . 2 6 . . 2 4 . 12 . . . . 21 . . . . 6 . 2 2 4 Terminals 61 | . 6 . 4 10 8 . . . 1 6 . . 2 . . 7 . . . . 11 . . . . 3 . . 2 1 Track 3 | . . . . 1 . . . . . 1 . . . . . . . . . . 1 . . . . . . . . . Assimilate 8 | . . . . . . . . . . 1 . . . . . 1 . . . . 3 . . . . 2 . . . 1 Botnet 22 | . 2 . 2 3 3 . . . 1 2 . . 1 . . 3 . . . . 3 . . . . 1 . . 1 . Operators 2 | . . . . 1 . . . . . . . . . . . . . . . . 1 . . . . . . . . . Skim 26 | . 4 . 2 5 5 . . . . 2 . . 1 . . 3 . . . . 3 . . . . . . . 1 . Fabricators 6 | . . . . . . . . . . . . . . 3 . . . . . . 2 . . . . . . 1 . . Report 1 | . . . . . . . . . . . . . . 1 . . . . . . . . . . . . . . . . Prioritize 1 | . . . . . . . . . . . . . . . . . . . . . 1 . . . . . . . . . Liberate 1 | . . . . . . . . . . . . . . 1 . . . . . . . . . . . . . . . . Haulers 2 | . . . . . . . . . . . . . . 1 . . . . . . 1 . . . . . . . . . Recompile 1 | . . . . . . . . . . . . . . . . . . . . . . . . . . . . 1 . . Repair Stations . | . . . . . . . . . . . . . . . . . . . . . . . . . . . . . . . Recycling Units 31 | . 2 . 2 1 4 . . . 1 . . . . 1 . 5 . . . . 8 . . . . 3 . 1 . 3 Reject 2 | . . . . . . . . . . . . . . . . . . . . . 2 . . . . . . . . . Mask 2 | . . . . . . . . . . . . . . . . . . . . . 2 . . . . . . . . . Tunnel 9 | . 2 . 2 1 4 . . . . . . . . . . . . . . . . . . . . . . . . . Fedlink 17 | . . . . . . . . . 1 . . . . 1 . 5 . . . . 3 . . . . 3 . 1 . 3 Scrapoids 1 | . . . . . . . . . . . . . . . . . . . . . 1 . . . . . . . . . Scanalyzers . | . . . . . . . . . . . . . . . . . . . . . . . . . . . . . . . Garrison Access . | . . . . . . . . . . . . . . . . . . . . . . . . . . . . . . . Data Cores Recovered 2 | . . . . . . . . . . . . . . . . . . . . . 1 . . . . . . . 1 . Used . | . . . . . . . . . . . . . . . . . . . . . . . . . . . . . . . Hacking Detections 92 | . 6 . 7 9 6 . . . 1 8 . . 5 5 . 9 . . . . 13 . . . . 6 3 4 3 7 Full Trace Events 16 | . 2 . 4 1 2 . . . . 2 . . 2 1 . . . . . . . . . . . 1 . 1 . . Feedback Events 1 | . 1 . . . . . . . . . . . . . . . . . . . . . . . . . . . . . Corruption 1 | . 1 . . . . . . . . . . . . . . . . . . . . . . . . . . . . . Feedback Blocked 1 | . . . 1 . . . . . . . . . . . . . . . . . . . . . . . . . . . Robot Schematics Acquired 1 | . . . . 1 . . . . . . . . . . . . . . . . . . . . . . . . . . Robots Built 1 | . . . . . . . . . . . . . . . . . . . . . . . . . . 1 . . . . Authchips . | . . . . . . . . . . . . . . . . . . . . . . . . . . . . . . . Time 27 | . . . . . . . . . . . . . . . . . . . . . . . . . . 27 . . . . Total Robot Build Rating 1 | . . . . . . . . . . . . . . . . . . . . . . . . . . 1 . . . . Part Schematics Acquired 14 | . 2 . 2 1 1 . . . . . . . . . . . . . . . 3 . . 4 . 1 . . . . Parts Built 6 | . . . . . . . . . . . . . . . . . . . . . 5 . . . . . . 1 . . Authchips 3 | . . . . . . . . . . . . . . . . . . . . . 2 . . . . . . 1 . . Time 384 | . . . . . . . . . . . . . . . . . . . . . 316 . . . . . . 68 . . Total Part Build Rating 41 | . . . . . . . . . . . . . . . . . . . . . 33 . . . . . . 8 . . Parts Repaired 20 | . 1 . 3 3 . . . . 1 . . . . 2 . 5 . . . . 5 . . . . . . . . . Time 1149 | . 26 . 108 96 . . . . 51 . . . . 207 . 414 . . . . 247 . . . . . . . . . Parts Recycled . | . . . . . . . . . . . . . . . . . . . . . . . . . . . . . . . Recycled Matter . | . . . . . . . . . . . . . . . . . . . . . . . . . . . . . . . Retrieved Matter . | . . . . . . . . . . . . . . . . . . . . . . . . . . . . . . . Retrieved Components . | . . . . . . . . . . . . . . . . . . . . . . . . . . . . . . . Parts Scanalyzed 5 | . . . 2 . . . . . . . . . . 1 . . . . . . 1 . . . . 1 . . . . Part Schematics Acquired 4 | . . . 2 . . . . . . . . . . . . . . . . . 1 . . . . 1 . . . . Parts Damaged 2 | . . . . . . . . . . . . . . . . . . . . . 1 . . . . 1 . . . . Bothacking | -11 -10 -10 -9 -9 -9 -9 -6 -6 -6 -6 -6 -6 -6 -5 -5 -5 -5 -5 -5 -4 -4 -4 -4 -4 -3 -3 -3 -2 -2 -2 ------------ Run | Yrd Mat Min Mat Sto Rec Scr Fac Was Fac Ext Cet Arc Hub Fac Was Fac Upp Upp War Pro Fac Upp Upp Zhi Pro Res Qua Res Tes Frg Used RIF Installer . | . . . . . . . . . . . . . . . . . . . . . . . . . . . . . . . Robots Hacked . | . . . . . . . . . . . . . . . . . . . . . . . . . . . . . . . Non-combat . | . . . . . . . . . . . . . . . . . . . . . . . . . . . . . . . Combat . | . . . . . . . . . . . . . . . . . . . . . . . . . . . . . . . Robot Hacks Applied . | . . . . . . . . . . . . . . . . . . . . . . . . . . . . . . . Relay Couplers Released 2 | . . . . . . . . . . . . . 2 . . . . . . . . . . . . . . . . . Machine Destruction 2 | . . . . . . . . . . . . . 2 . . . . . . . . . . . . . . . . . Fabnet Peak Effective % . | . . . . . . . . . . . . . . . . . . . . . . . . . . . . . . . Robots Rewired 26 | . . . . . 20 . . . . 6 . . . . . . . . . . . . . . . . . . . . Allies Hacked 1 | . . . . . 1 . . . . . . . . . . . . . . . . . . . . . . . . . Hacks Repelled . | . . . . . . . . . . . . . . . . . . . . . . . . . . . . . . . Allies | -11 -10 -10 -9 -9 -9 -9 -6 -6 -6 -6 -6 -6 -6 -5 -5 -5 -5 -5 -5 -4 -4 -4 -4 -4 -3 -3 -3 -2 -2 -2 -------- Run | Yrd Mat Min Mat Sto Rec Scr Fac Was Fac Ext Cet Arc Hub Fac Was Fac Upp Upp War Pro Fac Upp Upp Zhi Pro Res Qua Res Tes Frg Total Allies 60 | . . 3 . 12 20 . . . . 12 . . . . . 1 . . . . 8 . . . . 3 . . . 1 Largest Group 19 | . . 3 2 11 19 18 . . . 8 2 . . . . 1 . . . . 5 . . . . 2 . . . 1 Highest-Rated Group 261 | . . 40 32 119 240 225 . . . 261 59 . . . . 26 . . . . 238 . . . . 59 . . . 26 Highest-Rated Ally 50 | . . 16 16 31 34 34 . . . 39 39 . . . . 26 . . . . 50 . . . . 45 . . . 26 Total Orders 3 | . . . . . . 2 . . . . . . . . . . . . . . . . . . . 1 . . . . STAY 1 | . . . . . . 1 . . . . . . . . . . . . . . . . . . . . . . . . FOLLOW 1 | . . . . . . 1 . . . . . . . . . . . . . . . . . . . . . . . . AID 1 | . . . . . . . . . . . . . . . . . . . . . . . . . . 1 . . . . Ally Attacks 419 | . . 7 31 98 39 38 . . 6 159 2 . . . . . . . . . 39 . . . . . . . . . Total Damage 5933 | . . 71 118 1167 441 602 . . 28 2514 43 . . . . . . . . . 949 . . . . . . . . . Kills 73 | . . . 1 17 11 6 . . 1 30 . . . . . . . . . . 7 . . . . . . . . . Allies Corrupted 1 | . . . . . . . . . . 1 . . . . . . . . . . . . . . . . . . . . Allies Melted . | . . . . . . . . . . . . . . . . . . . . . . . . . . . . . . . Intel | -11 -10 -10 -9 -9 -9 -9 -6 -6 -6 -6 -6 -6 -6 -5 -5 -5 -5 -5 -5 -4 -4 -4 -4 -4 -3 -3 -3 -2 -2 -2 ------- Run | Yrd Mat Min Mat Sto Rec Scr Fac Was Fac Ext Cet Arc Hub Fac Was Fac Upp Upp War Pro Fac Upp Upp Zhi Pro Res Qua Res Tes Frg Active Infowar (turns) 9792 | . 676 1102 711 . . 4 . . . . . . . 508 42 962 221 325 1182 83 1741 30 . 53 200 311 128 301 188 1024 Optics 754 | . . . . . . . . . . . . . . . . . . . . . . . . . . . . . . 754 Sensors 561 | . . . . . . . . . . . . . . . . . . . . . . . . . . . . 154 162 245 Terrain 147 | . . . . . . . . . . . . . . 147 . . . . . . . . . . . . . . . . Seismic 4018 | . 676 1102 711 . . 4 . . . . . . . 297 . . . . . 4 1224 . . . . . . . . . Machine Analysis 5401 | . . . . . . . . . . . . . . 480 42 962 221 325 1182 83 1741 30 . 53 200 82 . . . . Cloaking 1170 | . . . . . . . . . . . . . . . . . . . 1 . . 1 . . . 229 128 295 188 328 Jamming 701 | . . . . . . . . . . . . . . . . . . . . . 24 . . . . . . 220 188 269 ECM 14 | . . . . . . . . . . . . . . . . . . . . . . . . . 14 . . . . . Robot Analysis Total 8 | . 1 . 1 1 . . . . . . . . . . . 1 . . . . . . . 4 . . . . . . Derelict Logs Recovered 5 | . . 1 . . . . . . . . . . . . . . 1 3 . . . . . . . . . . . . Drone Launches 23 | . . . . . . . . . 6 17 . . . . . . . . . . . . . . . . . . . . Drone Recoveries 17 | . . . . . . . . . 6 11 . . . . . . . . . . . . . . . . . . . . Exploration | -11 -10 -10 -9 -9 -9 -9 -6 -6 -6 -6 -6 -6 -6 -5 -5 -5 -5 -5 -5 -4 -4 -4 -4 -4 -3 -3 -3 -2 -2 -2 ------------- Run | Yrd Mat Min Mat Sto Rec Scr Fac Was Fac Ext Cet Arc Hub Fac Was Fac Upp Upp War Pro Fac Upp Upp Zhi Pro Res Qua Res Tes Frg Turns Passed 26082 | 79 2494 1107 3495 2002 1717 3887 34 32 175 1202 463 825 432 791 42 962 221 325 1182 83 1741 65 36 79 200 382 174 412 260 1183 Spaces Moved 23900 | 48 834 454 1241 715 609 2984 84 88 354 708 164 69 212 1283 99 1547 428 792 1175 220 3075 256 150 255 473 908 625 1096 790 2164 Core 8 | 6 . . . . . 1 . . . . . . . . . . . 1 . . . . . . . . . . . . Treads 5939 | 42 834 454 1241 715 609 1066 . . . 365 164 69 212 168 . . . . . . . . . . . . . . . . Legs 108 | . . . . . . . . . . 108 . . . . . . . . . . . . . . . . . . . . Wheels . | . . . . . . . . . . . . . . . . . . . . . . . . . . . . . . . Hover 896 | . . . . . . . . . . . . . . . . . . . . . . . . . . . . . . 896 Flight 16949 | . . . . . . 1917 84 88 354 235 . . . 1115 99 1547 428 791 1175 220 3075 256 150 255 473 908 625 1096 790 1268 Fastest Speed 7 | 50 160 240 240 240 240 37 31 31 27 27 160 160 160 34 34 29 32 29 29 29 16 24 24 24 24 13 18 15 8 7 Average Speed 78 | 146 201 240 240 240 240 123 34 31 35 110 160 160 160 50 34 32 32 30 29 29 31 24 24 24 24 22 19 18 14 22 Slowest Speed 450 | 160 240 240 320 240 240 317 37 31 37 240 240 160 160 160 34 35 108 450 106 106 111 24 24 24 24 96 21 85 83 116 Overloaded Moves 48 | . . . . . . . . . . . . . . . . . . . . . 2 . . . . 34 . . 10 2 Propulsion Burnouts . | . . . . . . . . . . . . . . . . . . . . . . . . . . . . . . . Robots Hopped 158 | . . . . . . 8 . . 9 2 . . . 16 . 31 . 1 . 4 25 . . . . 10 5 33 4 10 Potential Cave-ins . | . . . . . . . . . . . . . . . . . . . . . . . . . . . . . . . Cave-ins Triggered . | . . . . . . . . . . . . . . . . . . . . . . . . . . . . . . . Teleports 1 | . . . . . . . . . . . . . . . . . . . . . . . . . . . . . . 1 Exploration Rate (%) 60 | 4 96 85 79 92 98 88 3 86 10 79 55 75 29 36 73 51 66 84 89 52 57 45 32 60 79 32 65 26 81 69 Regions Visited 30 Branch Regions 19 Pre-discovered Areas 22 | . 2 . 2 6 4 4 . . . . . . . 1 . . . . . . . . . 3 . . . . . . Known Exits Taken 11 | . . . 1 1 . . . . 1 . . . 1 . . 1 . . . 1 1 . . . 1 1 1 1 . . Unknown Exits Taken 15 | 1 1 1 . . 1 1 . . . 1 1 1 . . . . 1 1 1 . . 1 1 1 . . . . 1 . Scrap Searched 16 | . . 1 . . . 4 . . . . . . . . . . 2 2 . 2 . 1 . . 4 . . . . . Spaces Dug 240 | . . 12 3 . . . . . . . . 1 4 8 . 50 17 80 . 4 20 . . . 1 20 2 10 3 5 Terrain Destroyed 787 | . 17 29 13 . . . . . 1 . 12 20 188 17 . 128 17 80 . 4 129 . . . 1 23 2 36 6 64 Melee 9 | . . . 3 . . . . . . . . . . . . . . . . . . . . . . . . . 2 4 Projectile 188 | . . . . . . . . . 1 . 12 20 16 17 . 30 . 2 . 4 35 . . . 1 23 2 12 1 12 AOE 557 | . 17 29 10 . . . . . . . . . 172 . . 98 17 78 . . 94 . . . . . . 24 . 18 Terrain Rammed . | . . . . . . . . . . . . . . . . . . . . . . . . . . . . . . . Walls Destroyed . | . . . . . . . . . . . . . . . . . . . . . . . . . . . . . . . Machines Disabled . | . . . . . . . . . . . . . . . . . . . . . . . . . . . . . . . Actions | -11 -10 -10 -9 -9 -9 -9 -6 -6 -6 -6 -6 -6 -6 -5 -5 -5 -5 -5 -5 -4 -4 -4 -4 -4 -3 -3 -3 -2 -2 -2 --------- Run | Yrd Mat Min Mat Sto Rec Scr Fac Was Fac Ext Cet Arc Hub Fac Was Fac Upp Upp War Pro Fac Upp Upp Zhi Pro Res Qua Res Tes Frg Total 29910 | 54 1558 470 1575 927 844 3194 88 92 389 1056 261 718 255 1377 106 1895 496 859 2005 226 3675 259 149 273 550 1052 668 1262 910 2667 Wait 4006 | . 637 . 170 109 27 80 . 4 29 190 18 609 9 28 2 279 51 48 773 . 376 . . . 59 83 37 161 68 159 Move 23582 | 47 833 453 1240 714 608 2972 84 87 336 703 163 68 211 1252 98 1492 427 789 1174 212 3025 255 149 254 472 887 614 1035 781 2147 Hop 133 | . . . . . . 4 . . 8 2 . . . 15 . 23 . 1 . 3 24 . . . . 10 5 27 4 7 Pick Up 252 | 1 23 3 13 15 . 50 . 1 1 12 6 2 5 13 2 8 1 1 8 2 27 . . 4 1 10 3 6 7 27 Fast Attach 227 | 6 3 2 13 11 . 19 2 . 6 32 10 4 1 7 . 12 . 3 17 1 22 1 . 4 3 6 1 4 6 31 Attach 112 | . 2 . 3 1 . 8 2 . 2 3 6 . 1 10 2 10 2 2 2 1 22 1 . 3 4 8 . 3 4 10 Detach 49 | . 1 1 . . . 3 . . 2 1 2 . . 1 . 4 2 2 . . 9 2 . 2 3 4 . 1 3 6 Swap 84 | . 2 2 15 6 . 1 . . . 7 3 1 3 9 1 1 . . 4 1 18 . . 1 . 2 . 2 2 3 Drop 339 | . 5 5 15 23 . 56 . . 2 33 6 6 . 21 1 13 . 1 22 1 29 . . 5 3 12 4 9 14 53 Fire 714 | . 47 4 92 42 9 1 . . 3 25 47 27 22 20 . 52 13 12 5 5 87 . . . 5 23 4 14 12 143 Melee 28 | . . . 3 1 . . . . . 7 . . . . . . . . . . . . . . . . . . 9 8 Ram 2 | . . . . . . . . . . . . . . . . . . . . . . . . . . . . . . 2 Kick . | . . . . . . . . . . . . . . . . . . . . . . . . . . . . . . . Crush 30 | . 5 . 11 5 3 . . . . 2 . 1 3 . . . . . . . . . . . . . . . . . Escape Stasis 56 | . . . . . . . . . . . . . . . . . . . . . 36 . . . . 7 . . . 13 Rewire 236 | . . . . . 197 . . . . 39 . . . . . . . . . . . . . . . . . . . . Trap . | . . . . . . . . . . . . . . . . . . . . . . . . . . . . . . . Miscellaneous 60 | . . . . . . . . . . . . . . 1 . 1 . . . . . . . . . . . . . 58 Route ------- -11/Scrapyard -10/Materials (discovered 6 exits: *Mat x3 / *Min x2 / [*Sub]) -10/Mines (discovered 3 exits: *Mat x2 / [*Sub]) -9/Materials (discovered 5 exits: [*Mat x3] / [*Min] / *Sto) -9/Storage (discovered 2 exits: [*Mat] / *Rec) -9/Recycling (discovered 2 exits: [*Fac] / *Scr) -9/Scraptown (discovered 2 exits: [*Fac x2]) -6/Factory (discovered 6 exits: Fac x2 / Low x2 / Ext x2) -6/Waste -6/Factory -6/Extension (discovered 3 exits: *Fac x2 / [*Cet]) -6/Cetus (discovered 2 exits: *Fac / [*Arc]) -6/Archives -6/Hub_04(d) -5/Factory (discovered 4 exits: *Fac x4) -5/Waste -5/Factory (discovered 5 exits: *Fac x3 / *Upp x2) -5/Upper Caves -5/Upper Caves -5/Warlord -4/Proximity Caves -4/Factory (discovered 6 exits: *Res x4 / *Upp x2) -4/Upper Caves -4/Upper Caves (discovered 2 exits: Res / *Zhi) -4/Zhirov -3/Proximity Caves -3/Research (discovered 4 exits: *Res / *Arm / *Qua x2) -3/Quarantine -2/Research (discovered 3 exits: [*Acc] / *Tes x2) -2/Testing (discovered 3 exits: [*Acc] / [*Sec] / *Frg) -2/Protoforge (discovered 1 exit: [*Acc]) History --------- Turn | Location | Event 3 | -11/Scrapyard | Discovered new exit (range 16) 80 | -11/Scrapyard | Entered Materials 80 | -10/Materials | Discovered new exit (range 8) 157 | -10/Materials | Discovered new exit (range 16) 224 | -10/Materials | Discovered new exit (range 15) 309 | -10/Materials | Build established: Mutant 349 | -10/Materials | Discovered new exit (range 13) 534 | -10/Materials | Discovered new exit (range 15) 680 | -10/Materials | Derelicts attacked the area 1340 | -10/Materials | Discovered new exit (range 8) 1775 | -10/Materials | Repaired Lgt. Treads 2574 | -10/Materials | Entered Mines 2596 | -10/Mines | Discovered new exit (range 7) 2988 | -10/Mines | Received a Rocket Launcher from a helpful Derelict 3034 | -10/Mines | Found the Drone Emporium 3045 | -10/Mines | Found Prototype Device 3045 | -10/Mines | Identified Splice Drone Bay 3219 | -10/Mines | Assisted by bots powering up and referring to "LRC-V3" 3241 | -10/Mines | Discovered new exit (range 14) 3266 | -10/Mines | Met a Derelict shopkeep closing up shop 3333 | -10/Mines | Deemed a non-threat by the Exiles lab entrance 3510 | -10/Mines | Discovered new exit (range 4) 3681 | -10/Mines | Entered Materials 3681 | -9/Materials | Accompanied by 2 allies 3681 | -9/Materials | Evolved 2 slots: Weapon x2 3682 | -9/Materials | Identified exit to Storage 3973 | -9/Materials | Build established: Gunner 4393 | -9/Materials | Discovered new exit (range 15) 4615 | -9/Materials | Discovered new exit (range 15) 5233 | -9/Materials | Discovered new exit (range 5) 5558 | -9/Materials | Destroyed 7 combat bots 5775 | -9/Materials | Discovered new exit (range 3) 6675 | -9/Materials | Repaired Autogun 6709 | -9/Materials | Repaired Autogun 6956 | -9/Materials | Repaired Broken Autogun 7176 | -9/Materials | Entered Storage 7191 | -9/Storage | Met a pair of Derelict thieves 7669 | -9/Storage | Assisted by bots powering up and referring to "LRC-V3" 7968 | -9/Storage | Build established: Commander-Gunner 8018 | -9/Storage | Discovered new exit (range 16) 8059 | -9/Storage | Found Prototype Processor 8228 | -9/Storage | System corruption reached 10% 8445 | -9/Storage | Found Prototype Protection 8597 | -9/Storage | Repaired Autogun 8629 | -9/Storage | Repaired Autogun 8829 | -9/Storage | Repaired Imp. Treads 8858 | -9/Storage | Learned location of Zion (-7) 8899 | -9/Storage | Learned Materials terminal intel 8949 | -9/Storage | Identified exit to Recycling 9016 | -9/Storage | Learned 2 Materials zone layouts 9056 | -9/Storage | Loaded intel: 18 terminal locations 9091 | -9/Storage | Used back door to open Recycling access 9178 | -9/Storage | Entered Recycling 9178 | -9/Recycling | Accompanied by 7 allies 9832 | -9/Recycling | Discovered new exit (range 8) 10524 | -9/Recycling | Lost 6 allies 10823 | -9/Recycling | Scanned before Scraplab entrance 10857 | -9/Recycling | Entered Scraplab 10876 | -9/Recycling | Discovered new exit (range 2) 10895 | -9/Recycling | Entered Scraptown 10895 | -9/Scraptown | Accompanied by 18 allies 10895 | -9/Scraptown | System corruption cleaned by C-Scrubber 11323 | -9/Scraptown | Discovered new exit (range 13) 11395 | -9/Scraptown | Visited The Evicted 11431 | -9/Scraptown | Visited CPS Storage 11445 | -9/Scraptown | Visited Junk Repository 11469 | -9/Scraptown | Visited Cyclists 11498 | -9/Scraptown | Visited Awakened 11834 | -9/Scraptown | Visited UFD Registry 11834 | -9/Scraptown | Registered with UFD as "Gravrigger" 11906 | -9/Scraptown | Visited Junk Repository 11966 | -9/Scraptown | Visited Junk Cannon Lab 12035 | -9/Scraptown | Visited Scrapoid Research Area 12167 | -9/Scraptown | Visited A0-MCA Data Center 12201 | -9/Scraptown | Visited Scrap Suit Storage 12331 | -9/Scraptown | Visited Abandonware Association 12364 | -9/Scraptown | Visited Curators Association 12431 | -9/Scraptown | Visited Analyses Database 12467 | -9/Scraptown | Visited Science Testing Area 12631 | -9/Scraptown | Visited Cartography Club 12702 | -9/Scraptown | Identified Lgt. Regenerative Plating 12714 | -9/Scraptown | Learned abandonware demo "REPAIR.EXE" 12867 | -9/Scraptown | Given an S rating by A0-MCA 12872 | -9/Scraptown | Found A0-MCA's Component Scanner 12875 | -9/Scraptown | Found Prototype Processor 12985 | -9/Scraptown | Visited SPCMW 12992 | -9/Scraptown | Visited Fellowship of the Rings 13694 | -9/Scraptown | Discovered new exit (range 5) 13831 | -9/Scraptown | Learned location of Recycling (-9) 13831 | -9/Scraptown | Learned location of Armory (-3) 13831 | -9/Scraptown | Learned 16 Factory zone layouts 13831 | -9/Scraptown | Learned 24 Factory zone layouts 13831 | -9/Scraptown | Learned 12 Lower Caves zone layouts 13831 | -9/Scraptown | Learned 8 Proximity Caves zone layouts 13831 | -9/Scraptown | Learned 12 Proximity Caves zone layouts 13831 | -9/Scraptown | Learned 4 Armory zone layouts 13831 | -9/Scraptown | Learned Factory emergency access door positions 13831 | -9/Scraptown | Learned location of 2 exits from Research 13831 | -9/Scraptown | Learned location of 2 exits from Lower Caves 14104 | -9/Scraptown | Build established: Commander-Mutant 14684 | -9/Scraptown | Met Optimus 14684 | -9/Scraptown | Accepted into 0bPrime 14738 | -9/Scraptown | Civil war broke out across Scraptown 14754 | -9/Scraptown | Found PL-3XN's Ring of Power 14779 | -9/Scraptown | Core integrity fell below 50% 14782 | -9/Scraptown | Entered Factory 14782 | -6/Factory | Evolved 6 slots: Propulsion x2, Utility x4 14783 | -6/Factory | Identified exit to Factory 14783 | -6/Factory | Identified exit to Extension 14783 | -6/Factory | Identified exit to Lower Caves 14812 | -6/Factory | Lost 10 allies 14813 | -6/Factory | Lost 3 parts (1u2w) 14816 | -6/Factory | Sucked down chute 14816 | -6/Factory | Entered Waste 14826 | -6/Waste | Spotted C-40 Crusher 14829 | -6/Waste | Spotted C-40 Crusher 14830 | -6/Waste | Spotted C-40 Crusher 14831 | -6/Waste | EMP discharged 14832 | -6/Waste | Spotted C-40 Crusher 14840 | -6/Waste | Spotted C-40 Crusher 14842 | -6/Waste | Spotted C-40 Crusher 14843 | -6/Waste | Discovered new exit (range 10) 14848 | -6/Waste | Entered Factory 14888 | -6/Factory | System corruption reached 10% 14951 | -6/Factory | Repaired Imp. Flight Unit? 14962 | -6/Factory | Loaded intel: 8 recycling unit locations 14981 | -6/Factory | Discovered exit to Extension (range 16) 15023 | -6/Factory | Entered Extension 15047 | -6/Extension | Rescued a captive Derelict 15059 | -6/Extension | Rescued a captive Derelict 15214 | -6/Extension | Energy Cycler disabled 15215 | -6/Extension | Rescued a captive Derelict 15215 | -6/Extension | Rescued a captive Derelict 15215 | -6/Extension | Rescued a captive Derelict 15216 | -6/Extension | Rescued a captive Derelict 15216 | -6/Extension | Rescued a captive Derelict 15220 | -6/Extension | Rescued a captive Derelict 15409 | -6/Extension | Spotted B-75 Beast 15431 | -6/Extension | Destroyed B-75 Beast 15450 | -6/Extension | Discovered exit to Factory (range 15) 15499 | -6/Extension | Extracted ID and sensor layout for unrecognized location from A7's data core 15723 | -6/Extension | First assault squad dispatched 15856 | -6/Extension | Build established: Scavenger-Tank 16034 | -6/Extension | Discovered exit to Factory (range 10) 16035 | -6/Extension | Discovered new exit (range 6) 16225 | -6/Extension | Entered Cetus 16225 | -6/Cetus | Accompanied by 2 allies 16245 | -6/Cetus | Spotted Cetus Guard 16245 | -6/Cetus | Spotted Cetus Guard 16249 | -6/Cetus | Spotted Cetus Guard 16249 | -6/Cetus | Spotted Cetus Guard 16273 | -6/Cetus | Destroyed Cetus Guard 16276 | -6/Cetus | Destroyed Cetus Guard 16278 | -6/Cetus | Core integrity fell below 50% 16290 | -6/Cetus | Destroyed Cetus Guard 16326 | -6/Cetus | Destroyed Cetus Guard 16352 | -6/Cetus | Lost 9 parts (1p3n2u3w) 16465 | -6/Cetus | Discovered new exit (range 15) 16495 | -6/Cetus | Spotted Cetus Guard 16495 | -6/Cetus | Spotted Cetus Guard 16500 | -6/Cetus | Spotted Cetus Guard 16510 | -6/Cetus | Destroyed Cetus Guard 16510 | -6/Cetus | Spotted Cetus Guard 16513 | -6/Cetus | Core integrity fell below 20% 16520 | -6/Cetus | Destroyed Cetus Guard 16534 | -6/Cetus | Destroyed Cetus Guard 16550 | -6/Cetus | Lost 3 parts (1n1u1w) 16552 | -6/Cetus | Destroyed Cetus Guard 16586 | -6/Cetus | Discovered exit to Factory (range 15) 16594 | -6/Cetus | Met Revision 17 16688 | -6/Cetus | Entered Archives 16958 | -6/Archives | Discovered new exit (range 16) 17513 | -6/Archives | Entered Hub_04(d) 17791 | -6/Hub_04(d) | Discovered exit to Factory (range 9) 17923 | -6/Hub_04(d) | Network Hub disabled 17936 | -6/Hub_04(d) | Spotted Lightning 17936 | -6/Hub_04(d) | Spotted Lightning 17937 | -6/Hub_04(d) | Spotted Lightning 17945 | -6/Hub_04(d) | Entered Factory 17945 | -5/Factory | Evolved 2 slots: Propulsion x2 17972 | -5/Factory | Lost 3 parts (1p1u1w) 17999 | -5/Factory | Discovered new exit (range 6) 18267 | -5/Factory | Spotted B-75 Beast 18317 | -5/Factory | Noticed UFD Elites at a Recycling Unit 18366 | -5/Factory | Discovered new exit (range 6) 18455 | -5/Factory | Repaired Centrium Medium Armor Plating? 18509 | -5/Factory | Identified exit to Factory 18568 | -5/Factory | Repaired Adv. KE Penetrator 18630 | -5/Factory | Loaded intel: 8 recycling unit locations 18630 | -5/Factory | Learned location of Protoforge (-2) 18736 | -5/Factory | Manually triggered Chute Trap 18736 | -5/Factory | Sucked down chute 18736 | -5/Factory | Entered Waste 18745 | -5/Waste | Found Fusion Bomb Launcher 18753 | -5/Waste | Spotted C-40 Crusher 18757 | -5/Waste | Spotted C-40 Crusher 18759 | -5/Waste | Spotted C-40 Crusher 18760 | -5/Waste | Spotted C-40 Crusher 18761 | -5/Waste | Spotted C-40 Crusher 18762 | -5/Waste | Spotted C-40 Crusher 18775 | -5/Waste | Discovered new exit (range 10) 18778 | -5/Waste | Entered Factory 18837 | -5/Factory | Identified exit to Upper Caves 18913 | -5/Factory | Discovered exit to Factory (range 5) 18948 | -5/Factory | Repaired Broken Impulse Thruster Array? 19009 | -5/Factory | Build established: Hacker-Tank 19146 | -5/Factory | Repaired Nuclear Pulse Array 19247 | -5/Factory | Repaired Adv. KE Penetrator 19303 | -5/Factory | Repaired Nuclear Pulse Array 19411 | -5/Factory | Repaired Centrium Medium Armor Plating 19476 | -5/Factory | Loaded intel: 8 recycling unit locations 19589 | -5/Factory | Discovered exit to Factory (range 14) 19705 | -5/Factory | Discovered exit to Factory (range 10) 19728 | -5/Factory | Spotted B-75 Beast 19740 | -5/Factory | Entered Upper Caves 19760 | -5/Upper Caves | Lost 4 parts (1p1u2w) 19798 | -5/Upper Caves | Build established: Hacker-Sprinter 19805 | -5/Upper Caves | Attracted the attention of an 0b10 outpost 19832 | -5/Upper Caves | Learned location of 1 exit from Factory 19956 | -5/Upper Caves | Discovered new exit (range 13) 19961 | -5/Upper Caves | Entered another Upper Caves area 19962 | -5/Upper Caves | Learned Factory garrison access intel 19972 | -5/Upper Caves | Attracted the attention of an 0b10 checkpoint 20159 | -5/Upper Caves | Learned 8 Factory zone layouts 20197 | -5/Upper Caves | Learned Factory garrison access intel 20215 | -5/Upper Caves | Discovered new exit (range 5) 20286 | -5/Upper Caves | Entered Warlord 20297 | -5/Warlord | System corruption cleaned by Quarantine Array 20361 | -5/Warlord | Found Prototype Device 20361 | -5/Warlord | Identified System Purifier 20367 | -5/Warlord | Found Prototype Device 20367 | -5/Warlord | Identified Exp. Cloaking Device 20378 | -5/Warlord | Found Prototype Processor 20378 | -5/Warlord | Identified Exp. Target Analyzer 20486 | -5/Warlord | Visited the Vortex Lab 20489 | -5/Warlord | Found Prototype Energy Gun 20489 | -5/Warlord | Identified Vortex Rail 20501 | -5/Warlord | Warlord's base attacked by MAIN.C 20511 | -5/Warlord | Rebuked by Warlord 20626 | -5/Warlord | Build established: Sprinter 20678 | -5/Warlord | Lost 5 allies 20851 | -5/Warlord | Warlord forces counterattacked 20899 | -5/Warlord | Lost 10 allies 21176 | -5/Warlord | Warlord base infiltrated, sounded retreat 21177 | -5/Warlord | Enhanced Grunt warped into view 21177 | -5/Warlord | Enhanced Grunt warped into view 21177 | -5/Warlord | Enhanced Grunt warped into view 21177 | -5/Warlord | Enhanced Demolisher warped into view 21177 | -5/Warlord | Enhanced Demolisher warped into view 21177 | -5/Warlord | Enhanced Demolisher warped into view 21181 | -5/Warlord | Spotted Executioner 21199 | -5/Warlord | Lost 4 allies 21357 | -5/Warlord | Lost 7 allies 21401 | -5/Warlord | Spotted Executioner 21401 | -5/Warlord | Spotted Striker 21401 | -5/Warlord | Spotted Executioner 21416 | -5/Warlord | Discovered new exit (range 14) 21455 | -5/Warlord | Found Prototype Device 21455 | -5/Warlord | Identified Exp. Shock Absorption System 21461 | -5/Warlord | Lost 9 allies 21468 | -5/Warlord | Entered Proximity Caves 21516 | -4/Proximity Caves | Learned Extension stockpile data 21516 | -4/Proximity Caves | Learned Extension trap positions 21516 | -4/Proximity Caves | Learned 8 Research zone layouts 21529 | -4/Proximity Caves | Spotter reported a threat 21551 | -4/Proximity Caves | Entered Factory 21551 | -4/Factory | Evolved 2 slots: Utility x2 21552 | -4/Factory | Identified exit to Research 21553 | -4/Factory | Identified exit to Upper Caves 21555 | -4/Factory | Loaded intel: 3 garrison access locations 21801 | -4/Factory | Fabricated Nova Cannon? 21849 | -4/Factory | Build established: Hacker-Sprinter 21928 | -4/Factory | Repaired Cmb. Linear Gravjet? 21938 | -4/Factory | Repaired Med. Storage Unit 22007 | -4/Factory | Repaired Impulse Thruster Array 22473 | -4/Factory | Repaired Broken Cld. Field Propulsion Drive? 22539 | -4/Factory | Fabricated Weapon Mount (x2) 22633 | -4/Factory | Fabricated Cld. Field Propulsion Drive? 22737 | -4/Factory | Repaired Centrium Medium Armor Plating 22824 | -4/Factory | Cargo convoy interrupted 22868 | -4/Factory | Lost 4 parts (1p1n2w) 23051 | -4/Factory | First assault squad dispatched 23075 | -4/Factory | Scrapoid reinforcements arrived 23131 | -4/Factory | Lost 5 allies 23178 | -4/Factory | Found Prototype Device 23180 | -4/Factory | Identified Exp. Shield Generator 23186 | -4/Factory | Found Exp. Thermic Cannon 23188 | -4/Factory | Found Hellfire Missile Launcher 23192 | -4/Factory | Loaded intel: 8 recycling unit locations 23292 | -4/Factory | Entered Upper Caves 23354 | -4/Upper Caves | Discovered new exit (range 14) 23357 | -4/Upper Caves | Entered another Upper Caves area 23390 | -4/Upper Caves | Discovered new exit (range 11) 23393 | -4/Upper Caves | Entered Zhirov 23394 | -4/Zhirov | Discovered new exit (range 3) 23398 | -4/Zhirov | Met Zhirov 23404 | -4/Zhirov | Found Alien Artifact 23404 | -4/Zhirov | Identified Integrated Dissipator 23404 | -4/Zhirov | Installed Integrated Dissipator, increased core heat dissipation (+20) 23421 | -4/Zhirov | Found Alien Artifact 23441 | -4/Zhirov | Learned location of Command (-1) 23443 | -4/Zhirov | Zhirov requested help retrieving the SGEMP Prototype 23472 | -4/Zhirov | Entered Proximity Caves 23495 | -3/Proximity Caves | Spotted B-86 Titan 23672 | -3/Proximity Caves | Entered Research 23672 | -3/Research | Evolved 2 slots: Power x1, Propulsion x1 23673 | -3/Research | Identified exit to Armory 23674 | -3/Research | Identified exit to Quarantine 23674 | -3/Research | Identified exit to Research 23686 | -3/Research | Spotted B-86 Titan 23701 | -3/Research | Loaded intel: 5 recycling unit locations 23872 | -3/Research | Revision forces began assault on 0b10 23923 | -3/Research | Fabricated M-13 Machinist (x1) 24014 | -3/Research | Spotted B-86 Titan 24032 | -3/Research | Met up with Revision 17++ 24033 | -3/Research | Found Com. Tesla Bomb Launcher 24042 | -3/Research | Identified Transdimensional Reconstructor 24045 | -3/Research | Spotted B-90 Cyclops 24054 | -3/Research | Entered Quarantine 24062 | -3/Quarantine | Found Alien Artifact 24074 | -3/Quarantine | Lost 5 allies 24081 | -3/Quarantine | Spotted Alpha 7 24089 | -3/Quarantine | Cryocooling Duct disabled 24104 | -3/Quarantine | Ambient heat levels rising (+20) 24104 | -3/Quarantine | Non-combat units ordered to evacuate 24195 | -3/Quarantine | Discovered exit to Research (range 13) 24228 | -3/Quarantine | Entered Research 24228 | -2/Research | Evolved 2 slots: Utility x2 24305 | -2/Research | Loaded intel: 5 recycling unit locations 24374 | -2/Research | Identified exit to Testing 24438 | -2/Research | Discovered new exit (range 11) 24446 | -2/Research | Fabricated Electron Diverter? 24478 | -2/Research | Search patrols dispatched 24640 | -2/Research | Entered Testing 24683 | -2/Testing | Spotted Striker 24709 | -2/Testing | Found 2N-1CE's Frost Array 24753 | -2/Testing | Discovered new exit (range 14) 24784 | -2/Testing | Found Perforator 24812 | -2/Testing | Found Hyp. Multirail 24877 | -2/Testing | Spotted Fortress 24886 | -2/Testing | Discovered new exit (range 5) 24886 | -2/Testing | Discovered new exit (range 6) 24900 | -2/Testing | Entered Protoforge 24911 | -2/Protoforge | Spotted Hotshot 24970 | -2/Protoforge | Spotted Hotshot 24970 | -2/Protoforge | Spotted Hotshot 24976 | -2/Protoforge | Superfortress began startup sequence 24980 | -2/Protoforge | Destroyed Hotshot 24989 | -2/Protoforge | Destroyed Hotshot 25013 | -2/Protoforge | Spotted Hotshot 25013 | -2/Protoforge | Spotted Hotshot 25033 | -2/Protoforge | Destroyed Hotshot 25033 | -2/Protoforge | Destroyed Hotshot 25040 | -2/Protoforge | Spotted Hotshot 25040 | -2/Protoforge | Destroyed Hotshot 25042 | -2/Protoforge | Spotted Hotshot 25093 | -2/Protoforge | Destroyed Hotshot 25125 | -2/Protoforge | Forge Plexus network access discovered 25137 | -2/Protoforge | Destroyed 7 combat bots 25137 | -2/Protoforge | Spotted AP7-3 25138 | -2/Protoforge | Spotted AP7-3 25182 | -2/Protoforge | Spotted EXE-6 25182 | -2/Protoforge | Spotted EXE-6 25182 | -2/Protoforge | Spotted Decapitator 25182 | -2/Protoforge | Spotted Decapitator 25183 | -2/Protoforge | Destroyed EXE-6 25199 | -2/Protoforge | Found Cep. XC Strikerail 25201 | -2/Protoforge | Found Exp. Armor Integrity Analyzer 25203 | -2/Protoforge | Found Exp. Core Analyzer 25206 | -2/Protoforge | Found Cep. XC Strikerail 25208 | -2/Protoforge | Destroyed Decapitator 25211 | -2/Protoforge | Destroyed Decapitator 25225 | -2/Protoforge | Lost 4 parts (2p2u) 25237 | -2/Protoforge | UFD initiated attack on Protoforge 25237 | -2/Protoforge | Loaded intel: 3 recycling unit locations 25273 | -2/Protoforge | Optimus greeted in Protoforge 25275 | -2/Protoforge | Destroyed AP7-3 25287 | -2/Protoforge | Found Cep. XC Strikerail 25295 | -2/Protoforge | Found Cep. XC Strikerail 25301 | -2/Protoforge | Found Exp. Target Analyzer 25305 | -2/Protoforge | Lost 3 allies 25325 | -2/Protoforge | Destroyed EXE-6 25340 | -2/Protoforge | Spotted Overlord 25461 | -2/Protoforge | Found Cep. Core Shell 25484 | -2/Protoforge | Spotted Decapitator 25484 | -2/Protoforge | Spotted Decapitator 25484 | -2/Protoforge | Spotted Decapitator 25484 | -2/Protoforge | Spotted Decapitator 25499 | -2/Protoforge | Spotted Executioner 25519 | -2/Protoforge | Spotted Striker 25521 | -2/Protoforge | Spotted Decapitator 25521 | -2/Protoforge | Spotted Decapitator 25521 | -2/Protoforge | Spotted Hotshot 25521 | -2/Protoforge | Spotted V084-o 25521 | -2/Protoforge | Spotted V848-w 25521 | -2/Protoforge | Spotted Decapitator 25521 | -2/Protoforge | Spotted Hotshot 25525 | -2/Protoforge | Found Cep. Antigrav Storage Unit 25526 | -2/Protoforge | Identified Hpw. Transdimensional Reconstructor 25526 | -2/Protoforge | Warped through subspace 25528 | -2/Protoforge | Spotted Immortal 25528 | -2/Protoforge | Spotted V225-a 25528 | -2/Protoforge | Spotted V271-b 25547 | -2/Protoforge | Lost 3 parts (2n1w) 25584 | -2/Protoforge | Lost 3 parts (1n1u1w) 25588 | -2/Protoforge | Found UFD Drillbomb 25590 | -2/Protoforge | Found UFD Drillbomb 25606 | -2/Protoforge | Found Cep. Concussive Dispersal Blaster 25618 | -2/Protoforge | Spotted Striker 25618 | -2/Protoforge | Spotted Striker 25622 | -2/Protoforge | Destroyed Striker 25625 | -2/Protoforge | Destroyed Striker 25641 | -2/Protoforge | Spotted Executioner 25644 | -2/Protoforge | Spotted Executioner 25645 | -2/Protoforge | Destroyed Executioner 25647 | -2/Protoforge | Spotted Striker 25648 | -2/Protoforge | Destroyed Striker 25649 | -2/Protoforge | Spotted Striker 25654 | -2/Protoforge | Destroyed Striker 25657 | -2/Protoforge | Destroyed Executioner 25658 | -2/Protoforge | Lost 4 allies 25690 | -2/Protoforge | Build established: Scavenger-Sprinter 25699 | -2/Protoforge | Spotted Striker 25701 | -2/Protoforge | Lost 3 parts (1p1n1w) 25701 | -2/Protoforge | Spotted Striker 25702 | -2/Protoforge | Destroyed Striker 25721 | -2/Protoforge | Spotted Decapitator 25722 | -2/Protoforge | Spotted Decapitator 25723 | -2/Protoforge | Destroyed 19 combat bots 25734 | -2/Protoforge | Spotted Hotshot 25737 | -2/Protoforge | Destroyed Hotshot 25740 | -2/Protoforge | Destroyed Hotshot 25771 | -2/Protoforge | Installed UFD Drillbomb at designated target 25771 | -2/Protoforge | UFD reported confirmed Drillbomb installation 25788 | -2/Protoforge | Installed UFD Drillbomb at designated target 25788 | -2/Protoforge | UFD reported confirmed Drillbomb installation 25830 | -2/Protoforge | Spotted Executioner 25832 | -2/Protoforge | Found UFD Drillbomb 25834 | -2/Protoforge | Found UFD Drillbomb 25839 | -2/Protoforge | Spotted Executioner 25841 | -2/Protoforge | Spotted Executioner 25846 | -2/Protoforge | Destroyed Executioner 25846 | -2/Protoforge | Destroyed Executioner 25847 | -2/Protoforge | Spotted SKR-2 25883 | -2/Protoforge | Installed UFD Drillbomb at designated target 25883 | -2/Protoforge | UFD reported confirmed Drillbomb installation 25903 | -2/Protoforge | Found 0bPrime Scrap Suit 25910 | -2/Protoforge | Found UFD Drillbomb 25926 | -2/Protoforge | Installed UFD Drillbomb at designated target 25926 | -2/Protoforge | UFD reported confirmed Drillbomb installation 25933 | -2/Protoforge | Found UFD Drillbomb 25939 | -2/Protoforge | Spotted Executioner 25947 | -2/Protoforge | Spotted Striker 25947 | -2/Protoforge | Spotted Executioner 25950 | -2/Protoforge | Spotted Executioner 25959 | -2/Protoforge | Installed UFD Drillbomb at designated target 25959 | -2/Protoforge | UFD reported confirmed Drillbomb installation 25960 | -2/Protoforge | Core integrity fell below 50% 25966 | -2/Protoforge | Spotted Executioner 25987 | -2/Protoforge | Lost 6 allies 25993 | -2/Protoforge | Installed UFD Drillbomb at designated target 25993 | -2/Protoforge | UFD reported confirmed Drillbomb installation 25994 | -2/Protoforge | Spotted Striker 25994 | -2/Protoforge | Spotted Striker 25994 | -2/Protoforge | Discovered new exit (range 18) 25995 | -2/Protoforge | Spotted Executioner 25998 | -2/Protoforge | Spotted Striker 25998 | -2/Protoforge | Spotted Striker 26009 | -2/Protoforge | P-80 Master assimilated allied EI-V7O(j) 26019 | -2/Protoforge | Spotted Immortal 26019 | -2/Protoforge | Spotted Immortal 26022 | -2/Protoforge | Spotted Immortal 26037 | -2/Protoforge | Found Cep. Weapon Articulator 26041 | -2/Protoforge | Found Cep. XC Strikerail 26050 | -2/Protoforge | Lost 3 allies 26052 | -2/Protoforge | Destroyed Striker 26075 | -2/Protoforge | Destroyed Striker 26081 | -2/Protoforge | Core integrity fell below 20% 26083 | -2/Protoforge | Destroyed by Immortal with Experimental Jetlance Last Messages --------------- 26074_ Adv. Weapon Cycler destroyed. 26075_ Slug penetrates Striker. 26075_ Striker destroyed. 26075_ Gravjet Array destroyed. 26077_ Dropped UFD Drillbomb. 26078_ Dropped Mic. Antimatter Reactor. 26078_ Dropped Cep. XC Strikerail. 26079_ Dropped Exp. Cloaking Device. 26079_ Slammed into S-43 Plague. 26079_ Critical hit (Impale). 26081_ Slammed into S-43 Plague. 26081_ Destabilizing: System interference. 26081_ Exp. Armor Integrity Analyzer temporarily disabled. 26081_ Exp. Core Analyzer temporarily disabled. 26081_ Critical hit (Impale). 26081_ Drone sends a signal. 26081_ 0bPrime Scrap Suit destroyed. 26082_ Acquired 74 matter. 26083_ Critical hit (Impale). Map ----- +----------------------------------------------------+ | ??????????????*???????????????????????????# #??? | | ??????????????????????????????????????????# #??? | | ??????????????????????????????????????????# #??? | | ??????????????????????????????????????????# #### | | ??????????????????????????????????????????# | | ??????????????????????????????????????????# | | ??????????????????????????????????????????# | | ??????????????????????????????????????????######## | | ?????????????????????????????????????????????????# | | ?????????????????????????????????????????????????# | | ?????????????????????????????????????????????????# | | ?????????????????????????????????????????????????# | | ?????????????????????????????????????????????????# | | ???????????????????????????????????????#?######### | | ?????????????????????????????????????? #?######### | | ????????????????????????????????????# #??##?"""""" | | ??????????????########?########?#### ###?## """" | | ??????????????###;####?########?###;####?## "" | | ??????##########"" "#####""""##### """##### T" | | ??????##########////#####!!!!####; ##### | | ??????## | | ??????## | | ??????## | | ??????## [ | | ??????## %*ls!!% | | ??????## l =%l@l!/ | | ??????## ##### !!!###;#KKp[##### *##### | | ??????## #####""""#####!%&"#####????#####""""""" | | ??????## ##?########?########?########?##""""""" | | ??????## ##?########?########?########?##??""""" | | ??????## ##????????????????????????????######### | | ??????## ##????????????????????????????######### | | ??????## ##????????????????????????????????????? | | ??????## ########??????????????????????????????? | | ??????## ########?????????????????#############? | | ??????## #? ##??????????####################? | | ??????## #? #########???######### ???##? | | ??????## # #########???## ## ""??##? | | ######## # " " # ##???## ## """ ##? | | ######## + " " # T ##???## """## """ ##? | | ???????# # " " # ##???## """## """"##? | | ???????# # # ##?#### """## """"##? | | ???????# #? # #### ## ## """"##? | | ???????# ####### ####"## ##?? ??##? | | ???????+ #########""### % "##+#"######"######? | | ???????# %* #####? | | """" # " =!= % "#???? | | """" " *%"[=% % % % ###??? | | #######" %%!"#/!#" ####""#""" ## #??? | | ############### =#" #%% %"" "%" " " #??? | +----------------------------------------------------+ Best States ------------- Heat Dissipation 169 Energy Generation 39 Energy Capacity 700 Matter Stores 300 Matter Capacity 300 Sight Range 23 Robot Scan Range 16 Terrain Scan Range 20 Terrain Scan Density 210 ECM Strength 2 Jamming Range 16 Cloak Strength 4 Armor Coverage 900 Resistance: TH 15 Core Shielding 90 Propulsion Shielding 90 Utility Shielding 90 Weapon Shielding 90 Weapon Cycling 25 Evasion (%) 72 Targeting Accuracy 20 Target Analysis 10 Core Analysis 8 Armor Integrity Analysis 50 Recoil Reduction 4 Salvage Targeting 4 Offensive Hacking 38 Defensive Hacking 14 Authchip Count 3 Item Schematics ----------------- Targeting Computer | -10/Materials | Hacked Lgt. Assault Rifle | -10/Materials | Hacked Transport Network Coupler | -9/Materials | Scanalyzed Structural Scanner | -9/Materials | Scanalyzed Flight Unit | -9/Storage | Hacked Lgt. Armor Plating | -9/Recycling | Hacked Adv. Force Field | -4/Factory | Hacked Weapon Mount | -4/Factory | Hacked Cld. Field Propulsion Drive | -4/Factory | Scanalyzed Assault Drone Bay | -4/Zhirov | Free Exp. Heat Sink | -4/Zhirov | Free Exp. Optical Array | -4/Zhirov | Free Imp. Arc Thrower | -4/Zhirov | Free Electron Diverter | -3/Research | Scanalyzed Robot Schematics ------------------ M-13 Machinist | -9/Storage | Hacked Fabricated ------------ Nova Cannon | x2 | -4/Factory | Preloaded Weapon Mount | x2 | -4/Factory | Authchip Cld. Field Propulsion Drive | x1 | -4/Factory | Authchip M-13 Machinist | x1 | -3/Research Electron Diverter | x1 | -2/Research | Authchip Repaired ---------- Lgt. Treads | 40% | -10/Materials Autogun | 15% | -9/Materials Autogun | 33% | -9/Materials Autogun | 30% | -9/Materials | Broken Autogun | 35% | -9/Storage Autogun | 37% | -9/Storage Imp. Treads | 42% | -9/Storage Imp. Flight Unit | 25% | -6/Factory Centrium Medium Armor Plating | 50% | -5/Factory Adv. KE Penetrator | 50% | -5/Factory Impulse Thruster Array | 58% | -5/Factory | Broken Nuclear Pulse Array | 24% | -5/Factory Adv. KE Penetrator | 37% | -5/Factory Nuclear Pulse Array | 30% | -5/Factory Centrium Medium Armor Plating | 30% | -5/Factory Cmb. Linear Gravjet | 3% | -4/Factory Med. Storage Unit | 27% | -4/Factory Impulse Thruster Array | 41% | -4/Factory Cld. Field Propulsion Drive | 99% | -4/Factory | Broken Centrium Medium Armor Plating | 65% | -4/Factory Alien Tech Used ----------------- Integrated Dissipator High-powered Transdimensional Reconstructor Achievements -------------- None Challenges ------------ None Game ------ Seed MicrowarpHugeDeconstructor Manual? 0 Play Time 04:39:28 Cumulative 973.1 hours Start 2025.05.10 @ 11:26:00 End 2025.05.10 @ 16:14:37 Sessions 1 Manual Loads 0 Difficulty Rogue Special Mode None Game No. 590 Rogue 583 Adventurer 0 Explorer 7 Win Type - Total 65 Types 23/6/24/2/0/1/6/1/2/0 Lore% 91 Gallery% 88 Achievement% 85 Wizard Run 0 Options --------- Layout 1 ASCII 0 Keyboard 0 Movement Numpad Keybinds 0 Fullscreen 2 Font 24/Smallcaps Map View 50x35 Zoom Use 0% Tactical HUD 1 Map Filters NONE Filters NONE Steam 1 RUN: 05140ae3-2079-486f-957c-aa98ff4a568b